Workbook

Sheet Contents
A1: Свернуть
A7: Gazprom in figures 2017. Factbook.
B8: Preface
B9: Gazprom in Russian and Global Energy Industry
B10: Financial Results
B11: Macroeconomic Data
B12: Market Data
B13: Exploration and Production in Russia
A14: + | B14: Reserves
B15: Hydrocarbon reserves of Gazprom Group in Russia
B16: Hydrocarbon fields and deposits discovered by Gazprom Group in Russia
B17: Replacement ratio of Gazprom Group’s hydrocarbon reserves, Russian classification of reserves
B18: Years of Gazprom Group’s hydrocarbon reserves, Russian classification of reserves
B19: Natural gas reserves of Gazprom Group in Russia, PRMS standards
B20: Gas condensate reserves of Gazprom Group in Russia, PRMS standards
B21: Oil reserves of Gazprom Group in Russia, PRMS standards
B22: Hydrocarbon reserves of Gazprom Group in Russia, Russian classification of reserves
B23: Hydrocarbon reserves of the associated and jointly controlled companies in Russia attributable to the share of Gazprom Group, Russian classification of reserves
B24: Change in Gazprom Group’s hydrocarbon reserves in Russia, Russian classification of reserves
B25: Hydrocarbon fields discovered by Gazprom Group in Russia
A26: + | B26: Licences
B27: License areas set out by federal districts of the Russian Federation
B28: Licenses for the main hydrocarbon fields
A29: + | B29: Production
B30: Hydrocarbon production of Gazprom Group in Russia
B31: Daily average hydrocarbon production of Gazprom Group in Russia
B32: Gazprom Group’s hydrocarbon production in Russia
B33: Hydrocarbon production of Gazprom Group in Russia set out by Federal Districts
B34: Useful life of APG by Gazprom Group in Russia
B35: Hydrocarbon production of the associated and jointly controlled companies
A36: + | B36: Geological Exploration, Production Drilling and Production Capacity
B37: Key figures of Gazprom Group’s geological exploration activities
B38: Key figures of geological exploration activities of entities, investments in which are classified as joint operations
B39: Gazprom Group’s production drilling
B40: Production drilling of entities, investments in which are classified as joint operations
B41: Gazprom Group’s production capacity
B42: Production capacity of entities, investments in which are classified as joint operations
A43: + | B43: Promising Fields
B44: Producing fields operated by Gazprom Group
B45: Fields explored by Gazprom Group
B46: Fields of joint ventures of Gazprom Group
A47: + | B47: Geological Exploration, Production Drilling and Production Capacity Abroad
B48: Key figures of Gazprom’s hydrocarbon geological exploration abroad
B49: Gazprom Group’s hydrocarbon production capacity abroad
B50: Gazprom Group oil and gas exploration drilling abroad
B51: Hydrocarbon production abroad, projects with participation of Gazprom Group
B52: International prospecting and exploration projects of Gazprom Group
B53: International prospecting and exploration projects of affiliates and joint ventures
A54: - | B54: Transportation and Underground Storage
A55: + | B55: Transportation
B56: Upgrade and overhaul of gas transportation system in Russia
B57: Diagnostics of the GTS in Russia
B58: Major technical characteristics of Gazprom Group’s gas transportation assets in Russia
B59: Breakdown of Russian trunk pipelines by time of service
B60: Gas received into and distributed from Gazprom’s GTS in Russia
B61: Gas transportation volumes of Nord Stream and Blue Stream pipelines
B62: Major technical characteristics of gas transportation assets of Gazprom Group’s subsidiaries abroad
B63: Gazprom Group’s major gas transportation projects
A64: + | B64: Underground Gas Storage
B65: Gazprom’s UGSFs in Russia
B66: Gas storage in Russia
B67: Gazprom’s gas injection into and withdrawal from UGSFs abroad
B68: Main projects of development of underground storage of gas in Russia
B69: UGSFs with Gazprom Group's participation abroad
B70: UGSF capacity used by OOO Gazprom export according to leasing agreements
B71: Prospective UGSFs with Gazprom Group’s participation abroad
A72: + | B72: Hydrocarbon Processing and Production of Refined Products
B73: Volumes of Gazprom Group’s hydrocarbon processing
B74: Liquid hydrocarbon primary processing by major subsidiaries of PJSC Gazprom
B75: Processing of natural and associated gas supplied by non-Group companies at PJSC Gazprom’s key subsidiaries
B76: Major types of refined products produced by Gazprom Group
B77: Areas at utilization of some types of refined oil and gas products produced by Gazprom Group
B78: Refined products produced by major Gazprom Group’s subsidiaries
B79: Hydrocarbon processing, gas chemical and petrochemical plants
B80: Major new hydrocarbon processing, gas chemical and petrochemical projects of Gazprom Group
B81: Gazprom Group’s projects for transportation of liquid hydrocarbons
A82: + | B82: Power and Heat Generation
B83: Electric power and heat generating capacity of Gazprom Group
B84: Electric power and heat generated by Gazprom Group
B85: Gazprom Group’s key power generation projects
A86: - | B86: Marketing
A87: + | B87: Gas Sales
B88: Natural gas sales revenue
B89: Average natural gas price
B90: Gazprom Group’s natural gas sales volumes
B91: Gazprom Groups’s natural gas sales volumes to foreign countries
B92: Gazprom’s share in domestic gas consumption in Russia
B93: Regulated weighted average wholesale prices for natural gas in Russia
B94: Gazprom Group subsidiaries’ gas sales volumes to end-consumers in far abroad countries
B95: Gazprom Group’s LNG sales volumes
B96: Gazprom Group’s projects to build LNG regasification facilities
B97: Promising large scale LNG projects with Gazprom Group’s participation
B98: Promising small and medium scale LNG projects with Gazprom Group’s participation
B99: Gas distribution and gasification in Russia
B100: Gazprom Group’s gas distribution operations abroad
A101: + | B101: Sales of Crude Oil, Gas Condensate and Refined Products
B102: Oil and gas condensate sales revenue
B103: Gazprom Group’s oil and gas condensate sales volumes
B104: Refined products sales revenue
B105: Gazprom Group’s refined products sales volumes
B106: Gazprom Group’s sales volumes of refined products and petrochemical products
B107: Gazprom Group’s helium sales volumes
A108: + | B108: Sales of Electricity, Heat Energy and Gas Transportation Services
B109: Electricity and heat energy sales revenue
B110: Gas transportation sales revenue
B111: Sales volumes of gas transportation services to companies other than Gazprom Group’s companies
A112: + | B112: Environmental Protection, Energy Saving, Research and Development
B113: Key indicators of Gazprom Group’s environmental impact in Russia
B114: Gazprom Group’s environmental costs in Russia
B115: Energy saving of PJSC Gazprom and its major subsidiaries
B116: Number of patents held by PJSC Gazprom and its subsidiaries and their use in operations
B117: Total spending on R&D projects commissioned by Gazprom Group
A118: - | B118: Personnel
A119: + | B119: Reference Information
B120: Conventions
B121: Conversion Table
B122: Calculation of Financial Ratios
B123: Glossary
A124: +

Sheet Preface
A1: Preface
A2: This reference material is based on Gazprom in Figures 2013–2017 Factbook and compiled in a spreadsheet format.
A3: Gazprom in Figures 2013–2017 Factbook contains information and statistics prepared for the annual General Shareholders Meeting of PJSC Gazprom in 2018. The Factbook is based on PJSC Gazprom’s corporate reports and information derived from Russian and foreign information publications.
A4: Figures in Gazprom Group’s consolidated financial statements prepared in accordance with IFRS (“IFRS consolidated financial statements”) are supplemented with data for 2010-2012, while production and other performance data are supplemented with comparable data from PJSC Gazprom’s Factbooks, Annual Reports, and Management Accounts for 2012 and previous periods.
A5: The terms “PJSC Gazprom” and the Company as used in this Factbook refers to the parent company of Gazprom Group, i.e. to Public Joint Stock Company Gazprom (until 17 June 2015 – Open Joint Stock Company Gazprom, JSC Gazprom).
A6: The terms “Gazprom Group”, the “Group” or “Gazprom” mean an aggregate of entities which includes PJSC Gazprom and its subsidiaries. For the purposes of this Factbook, the lists of Gazprom Group’s subsidiaries, associates and joint ventures, as well as entities in which Gazprom has investments classified as joint operations, were prepared based on the principles used in the preparation of PJSC Gazprom’s consolidated financial statements under the International Financial Reporting Standards (IFRS). Similarly, the terms “Gazprom Neft Group” and “Gazprom Neft” refer to PAO Gazprom Neft and its subsidiaries, “Gazprom energoholding” refers to OOO Gazprom energoholding and its subsidiaries, “Gazprom neftekhim Salavat” refers to OOO Gazprom neftekhim Salavat and its subsidiaries.
A7: Gazprom’s overall results as stated in the Factbook are recorded in compliance with the principles for preparing Gazprom Group’s consolidated financial statements prepared under IFRS (hereafter, the “IFRS consolidated financial statements”) and/or for the whole of Gazprom Group companies included for the purposes of Gazprom Group’s IFRS consolidated financial statements. In accordance with IFRS 11 Joint Arrangements, the volumes of hydrocarbon reserves, production and processing of hydrocarbons provided in the Factbook include share in the results of entities where Gazprom has investments classified as joint operations.
A8: Some figures of PJSC Gazprom and its subsidiaries were derived from management accounts. Figures calculated using these methods may differ due to differences in methodologies for preparing consolidated financial statements and maintaining management accounts.
A9: Figures representing barrels of oil equivalent (boe) were calculated using the specified conversion ratios. The Group maintains its management accounts in metric units.
A10: The Group’s financial results are derived from Gazprom Group’s IFRS consolidated financial statements. Gazprom Group’s accounting (financial) statements are expressed in Russian rubles. Equivalent amounts in USD and EUR were calculated at the specified exchange rates and do not represent the Group’s financial statements data.
A12: Back to Contents

Sheet Gazprom globally
A1: Gazprom in Russian and Global Energy Industry
B2: As at and for the year ended 31 December
B3: 2005 | C3: 2006 | D3: 2007 | E3: 2008 | F3: 2009 | G3: 2010 | H3: 2011 | I3: 2012 | J3: 2013 | K3: 2014 | L3: 2015 | M3: 2016 | N3: 2017
A4: Share in the world natural gas industry
A5: Gas reserves*,*** | B5: 0.166 | C5: 0.168 | D5: 0.165 | E5: 0.18 | F5: 0.18 | G5: 0.176 | H5: 0.183 | I5: 0.183 | J5: 0.166 | K5: 0.168 | L5: 0.169 | M5: 0.171 | N5: 0.167
A6: Gas production*,*** | B6: =0.185 -> 0.185 | C6: =0.181 -> 0.181 | D6: =0.174 -> 0.174 | E6: 0.167 | F6: 0.145 | G6: 0.148 | H6: 0.145 | I6: 0.136 | J6: 0.135 | K6: 0.121 | L6: 0.112 | M6: 0.112 | N6: 0.121
A7: Share in the Russian fuel and energy complex
A8: Russian natural gas reserves*** | B8: 0.609 | C8: 0.624 | D8: 0.621 | E8: 0.689 | F8: 0.698 | G8: 0.687 | H8: 0.718 | I8: 0.72 | J8: 0.723 | K8: 0.723 | L8: 0.716 | M8: 0.717 | N8: 0.717
A9: Gas production**,*** | B9: 0.866 | C9: 0.847 | D9: 0.839 | E9: 0.827 | F9: 0.792 | G9: 0.781 | H9: 0.765 | I9: 0.746 | J9: 0.731 | K9: 0.693 | L9: 0.66 | M9: 0.656 | N9: 0.683
A10: Crude oil and gas condensate production**,*** | B10: 0.045 | C10: 0.094 | D10: 0.092 | E10: 0.088 | F10: 0.084 | G10: 0.086 | H10: 0.087 | I10: 0.106 | J10: 0.109 | K10: 0.11 | L10: 0.111 | M10: 0.115 | N10: 0.118
A11: Primary processing of oil and stable gas condensate**,*** | B11: 0.049 | C11: 0.14 | D11: 0.141 | E11: 0.145 | F11: 0.155 | G11: 0.165 | H11: 0.172 | I11: 0.188 | J11: 0.194 | K11: 0.189 | L11: 0.185 | M11: 0.184 | N11: 0.177
A12: Electric power energy production**,*** | B12: – | C12: – | D12: 0.031 | E12: 0.105 | F12: 0.139 | G12: 0.169 | H12: 0.169 | I12: 0.162 | J12: 0.153 | K12: 0.146 | L12: 0.143 | M12: 0.146 | N12: 0.148
A13: Total length of trunk pipelines and pipeline branches on the territory of Russia****, thousand km | B13: 155 | C13: 156.9 | D13: 158.2 | E13: 159.5 | F13: 160.4 | G13: 161.7 | H13: 164.7 | I13: 168.3 | J13: 168.9 | K13: 170.7 | L13: 171.2 | M13: 171.8 | N13: 172.1
A14: * Based on International Natural Gas Center CEDIGAZ and PJSC Gazprom figures. Statistics on international production and trade are adjusted to Russian standard terms and conditions using 1.07 ratio.
A15: ** Based on Federal State Statistics Service, Ministry of Energy of Russia, UES System Operator and PJSC Gazprom figures.
A16: *** Starting from 1 January 2012, the volumes include share in the results of entities where Gazprom has investments classified as joint operations.
A17: **** Starting from 1 January 2013, total length of trunk pipelines includes length of technological branches.
A19: Back to Contents

Sheet Financial results
A1: Financial Results
A2: Major financial results and ratios of Gazprom Group
B3: As at and for the year ended 31 December
B4: 2010 | C4: 2011 | D4: 2012 | E4: 2013 | F4: 2014 | G4: 2015 | H4: 2016 | I4: 2017
A5: Statement of comprehensive income figures
A6: Sales, RUB mm | B6: 3597054 | C6: 4637090 | D6: 4766495 | E6: 5249965 | F6: 5589811 | G6: 6073318 | H6: 6111051 | I6: 6546143
A7: Operating expences, RUB mm | B7: 2440777 | C7: 2942181 | D7: 3421847 | E7: 3600908 | F7: 3943669 | G7: 4635502 | H7: 5244983 | I7: 5714090
A8: Operating profit, RUB mm | B8: 1113822 | C8: 1656843 | D8: 1350677 | E8: 1587209 | F8: 1310424 | G8: 1228301 | H8: 725580 | I8: 870623
A9: Adjusted EBITDA, RUB mm | B9: 1363778 | C9: 1930533 | D9: 1645921 | E9: 2009475 | F9: 1962558 | G9: 1874726 | H9: 1322199 | I9: 1466910
A10: Profit for the year, RUB mm | B10: 997993 | C10: 1342442 | D10: 1252415 | E10: 1165705 | F10: 157192 | G10: 805199 | H10: 997104 | I10: 766879
A11: Profit for the year attributable to owners of PJSC Gazprom, RUB mm. | B11: 968557 | C11: 1307018 | D11: 1224474 | E11: 1139261 | F11: 159004 | G11: 787056 | H11: 951637 | I11: 714302
A12: Basic and diluted earnings per share for profit attributable to the owners of PJSC Gazprom, RUB | B12: 42.2 | C12: 56.95 | D12: 53.35 | E12: 49.64 | F12: 6.93 | G12: 34.29 | H12: 42.19 | I12: 32.32
A13: Balance sheet figures
A14: Total assets, RUB mm | B14: 9235993 | C14: 10900696 | D14: 11956836 | E14: 13436236 | F14: 15177470 | G14: 17052040 | H14: 16918938 | I14: 18238770
A15: Current assets, RUB mm | B15: 1865895 | C15: 2240293 | D15: 2420803 | E15: 2862670 | F15: 3461155 | G15: 3993722 | H15: 3234346 | I15: 3469266
A16: Inventories, RUB mm | B16: 325739 | C16: 407530 | D16: 462746 | E16: 569724 | F16: 671916 | G16: 804364 | H16: 711199 | I16: 772314
A17: Current liabilities, RUB mm | B17: 1011261 | C17: 1309255 | D17: 1492066 | E17: 1391465 | F17: 1855947 | G17: 2124701 | H17: 1921808 | I17: 2589516
A18: Total debt, RUB mm | B18: 1315447 | C18: 1536819 | D18: 1500592 | E18: 1801928 | F18: 2688824 | G18: 3442215 | H18: 2829623 | I18: 3266518
A19: Net debt, RUB mm | B19: 870993 | C19: 1028176 | D19: 1 071 214 | E19: 1112798 | F19: 1650633 | G19: 2083120 | H19: 1932895 | I19: 2397511
A20: Equity, excluding non-controlling interest, RUB mm | B20: 6249751 | C20: 7463571 | D20: 8170733 | E20: 9319590 | F20: 9816558 | G20: 10589586 | H20: 11094531 | I20: 11629086
A21: Equity, including non-controlling interest, RUB mm | B21: 6536361 | C21: 7760991 | D21: 8479945 | E21: 9634354 | F21: 10120021 | G21: 10914622 | H21: 11441839 | I21: 12015481
A22: Capital expenditures*, RUB mm | B22: 920133 | C22: 1351590 | D22: 1233210 | E22: 1213850 | F22: 1221328 | G22: 1349635 | H22: 1357336 | I22: 1504600
A23: Statement of cash flows figures
A24: Cash flows from operating activities, RUB mm | B24: 1460116 | C24: 1637450 | D24: 1472779 | E24: 1741804 | F24: 1915769 | G24: 2030927 | H24: 1571323 | I24: 1187022
A25: Capital expenditures, RUB mm | B25: 1042642 | C25: 1553118 | D25: 1349114 | E25: 1397195 | F25: 1262140 | G25: 1641024 | H25: 1369052 | I25: 1405780
A26: Seft-financing ratio | B26: 1.4 | C26: 1.05 | D26: 1.09 | E26: 1.25 | F26: 1.52 | G26: 1.24 | H26: 1.15 | I26: 0.84
A27: Cash flows from investing activities, RUB mm | B27: 1050307 | C27: 1605245 | D27: 1287216 | E27: 1466512 | F27: 1441305 | G27: 1664156 | H27: 1445965 | I27: 1368131
A28: Cash flows from financing activities, RUB mm | B28: 212384 | C28: -31814 | D28: 253870 | E28: 33262 | F28: 262587 | G28: 138305 | H28: 460479 | I28: -149944
A29: Cash and cash equivalents as at the end of the reporting year, RUB mm | B29: 440786 | C29: 501344 | D29: 425720 | E29: 689130 | F29: 1038191 | G29: 1359095 | H29: 896728 | I29: 869007
A30: Return ratios**
A31: Return on operating profit | B31: 0.31 | C31: 0.36 | D31: 0.28 | E31: 0.3 | F31: 0.23 | G31: 0.2 | H31: 0.12 | I31: 0.13
A32: Return on adjusted EBITDA | B32: 0.38 | C32: 0.42 | D32: 0.35 | E32: 0.38 | F32: 0.35 | G32: 0.31 | H32: 0.22 | I32: 0.22
A33: Return on profit for the yaer | B33: 0.28 | C33: 0.29 | D33: 0.26 | E33: 0.22 | F33: 0.03 | G33: 0.13 | H33: 0.16 | I33: 0.12
A34: Return on assets (ROA) | B34: 0.1133791712 | C34: 0.13 | D34: 0.11 | E34: 0.09 | F34: 0.01 | G34: 0.05 | H34: 0.06 | I34: 0.04
A35: Return on equity (ROE) | B35: 0.1637976438 | C35: 0.19 | D35: 0.15 | E35: 0.13 | F35: 0.02 | G35: 0.08 | H35: 0.09 | I35: 0.07
A36: Ratios of total and net debt**
A37: Total debt / equity and non-controlling interest | B37: 0.2 | C37: 0.2 | D37: 0.18 | E37: 0.19 | F37: 0.27 | G37: 0.32 | H37: 0.25 | I37: 0.27
A38: Total debt / total debt, equity and non-controlling interest | B38: 0.17 | C38: 0.17 | D38: 0.15 | E38: 0.16 | F38: 0.21 | G38: 0.24 | H38: 0.2 | I38: 0.21
A39: Total debt / total assets | B39: 0.14 | C39: 0.14 | D39: 0.13 | E39: 0.13 | F39: 0.18 | G39: 0.2 | H39: 0.17 | I39: 0.18
A40: Total debt/ adjusted EBITDA | B40: 0.96 | C40: 0.8 | D40: 0.91 | E40: 0.9 | F40: 1.37 | G40: 1.84 | H40: 2.14 | I40: 2.23
A41: Net debt/ adjusted EBITDA | B41: 0.64 | C41: 0.54 | D41: 0.65 | E41: 0.55 | F41: 0.84 | G41: 1.11 | H41: 1.46 | I41: 1.63
A42: Liquidity ratios**
A43: Current liquidity ratio | B43: 1.85 | C43: 1.71 | D43: 1.62 | E43: 2.06 | F43: 1.86 | G43: 1.88 | H43: 1.68 | I43: 1.34
A44: Quick liquidity ratio | B44: 1.523005436 | C44: 1.4 | D44: 1.31 | E44: 1.65 | F44: 1.5 | G44: 1.5 | H44: 1.31 | I44: 1.04
A45: Other ratios**
A46: EV / EBITDA | B46: 3.999667518 | C46: 2.6 | D46: 2.7 | E46: 2.2 | F46: 2.4 | G46: 2.8 | H46: 4.2 | I46: 3.7
A47: P / E | B47: 4.588151659 | C47: 3 | D47: 2.7 | E47: 2.8 | F47: 18.8 | G47: 4 | H47: 3.7 | I47: 4
A48: P / S | B48: 1.274283224 | C48: 0.9 | D48: 0.7 | E48: 0.6 | F48: 0.6 | G48: 0.5 | H48: 0.6 | I48: 0.5
A49: * Capital expenditures are derived from Segment Information in PJSC Gazprom’s IFRS consolidated financial statements.
A50: ** Calculation methods are provided in the “Calculation of Financial Ratios” section.
A52: Back to Contents

Sheet Macroeconomic data
A1: Macroeconomic Data
A2: Indicator* | B2: Measure | C2: As at and for the year ended 31 December
C3: 2005 | D3: 2006 | E3: 2007 | F3: 2008 | G3: 2009 | H3: 2010 | I3: 2011 | J3: 2012 | K3: 2013 | L3: 2014 | M3: 2015 | N3: 2016 | O3: 2017
A4: Consumer price index | B4: % | C4: 0.109 | D4: 0.09 | E4: 0.119 | F4: 0.133 | G4: 0.088 | H4: 0.088 | I4: 0.061 | J4: 0.066 | K4: 0.065 | L4: 0.114 | M4: 0.129 | N4: 0.054 | O4: 0.025
A5: Producer price index | B5: % | C5: 0.134 | D5: 0.104 | E5: 0.251 | F5: -0.07 | G5: 0.139 | H5: 0.167 | I5: 0.12 | J5: 0.051 | K5: 0.037 | L5: 0.059 | M5: 0.107 | N5: 0.074 | O5: 0.084
A6: Average RUB/USD currency exchange rate for the period | B6: RUB/USD | C6: 28.32 | D6: 27.14 | E6: 25.55 | F6: 24.87 | G6: 31.75 | H6: 30.38 | I6: 29.39 | J6: 31.08 | K6: 31.9 | L6: 38.6 | M6: 61.32 | N6: 66.83 | O6: 58.31
A7: RUB/USD currency exchange rate at the end of the period | B7: RUB/USD | C7: 28.78 | D7: 26.33 | E7: 24.55 | F7: 29.38 | G7: 30.24 | H7: 30.36 | I7: 32.2 | J7: 30.37 | K7: 32, 73 | L7: 56.26 | M7: 72.88 | N7: 60.66 | O7: 57.6
A8: Average RUB/EUR currency exchange rate for the period | B8: RUB/EUR | C8: 35.15 | D8: 34.11 | E8: 35.03 | F8: 36.45 | G8: 44.19 | H8: 40.21 | I8: 40.9 | J8: 39.92 | K8: 42.39 | L8: 50.99 | M8: 67.99 | N8: 73.99 | O8: 66.02
A9: RUB/EUR currency exchange rate at the end of the period | B9: RUB/EUR | C9: 34.19 | D9: 34.7 | E9: 35.93 | F9: 41.44 | G9: 43.39 | H9: 39.9 | I9: 41.67 | J9: 40.23 | K9: 44.97 | L9: 68.34 | M9: 79.7 | N9: 63.81 | O9: 68.87
A10: Brent oil price (Dated)** | B10: USD/barrel | C10: 58.21 | D10: 58.93 | E10: 96.02 | F10: 36.55 | G10: 77.67 | H10: 92.54 | I10: 106.51 | J10: 109.99 | K10: 110.28 | L10: 55,98 | M10: 35.74 | N10: 54.94 | O10: 66.54
A11: Urals oil price (average CIF MED/RDAM)** | B11: USD/barrel | C11: 53.61 | D11: 55.26 | E11: 93.09 | F11: 35.89 | G11: 77 | H11: 90.27 | I11: 104.29 | J11: 108.09 | K11: 109.1 | L11: 53,40 | M11: 33.11 | N11: 53.27 | O11: 66.19
A12: Brent average annual oil price (Dated)** | B12: USD/barrel | C12: 54.52 | D12: 65.14 | E12: 72.39 | F12: 97.28 | G12: 61.67 | H12: 79.5 | I12: 111.26 | J12: 111.67 | K12: 108.66 | L12: 98,95 | M12: 52.39 | N12: 43.73 | O12: 64.19
A13: Urals (average CIF MED/RDAM) average annual oil price** | B13: USD/barrel | C13: 50.59 | D13: 61.28 | E13: 69.28 | F13: 94.82 | G13: 61.18 | H13: 78.28 | I13: 109.1 | J13: 110.37 | K13: 107.71 | L13: 96,94 | M13: 51.42 | N13: 42.1 | O13: 63.45
A14: * Economic indicators and exchange rates based on the data provided by Central Bank of Russia and the Federal State Statistics Service. The average exchange rates calculated based on the working days exchange rates provided by Central Bank of Russia.
A15: ** Source: Platts.
A17: Back to Contents

Sheet Market data
A1: Market Data
A2: Indicator | B2: Measure | C2: As at and for the year ended 31 December
C3: 2005 | D3: 2006 | E3: 2007 | F3: 2008 | G3: 2009 | H3: 2010 | I3: 2011 | J3: 2012 | K3: 2013 | L3: 2014 | M3: 2015 | N3: 2016 | O3: 2017
A4: Price per share on Moscow Exchange
A5: as at the end of the year | B5: RUB | C5: 194.3 | D5: 302.89 | E5: 342.88 | F5: 108.6 | G5: 183.21 | H5: 193.62 | I5: 171.37 | J5: 143.91 | K5: 138.75 | L5: 130,31 | M5: 136.09 | N5: 154.55 | O5: 130.5
A6: minimum | B6: RUB | C6: 69.6 | D6: 216 | E6: 227.99 | F6: 86.6 | G6: 101.91 | H6: 142.84 | I6: 143.03 | J6: 137.18 | K6: 107.17 | L6: 117,87 | M6: 130.9 | N6: 124.6 | O6: 115.35
A7: maximum | B7: RUB | C7: 195 | D7: 350.25 | E7: 357.2 | F7: 367.4 | G7: 200.16 | H7: 197.34 | I7: 243.93 | J7: 199.69 | K7: 158 | L7: 153,25 | M7: 163 | N7: 168.47 | O7: 157.97
A8: Price per ADR* on LSE
A9: as at the end of the year | B9: USD | C9: 28.68 | D9: 46 | E9: 56.7 | F9: 14.25 | G9: 25.5 | H9: 25.25 | I9: 10.66 | J9: 9.46 | K9: 8.55 | L9: 4,65 | M9: 3.69 | N9: 5.05 | O9: 4.41
A10: minimum | B10: USD | C10: 11.92 | D10: 29.48 | E10: 35.4 | F10: 11.91 | G10: 12.26 | H10: 18.06 | I10: 8.74 | J10: 8.7 | K10: 6.48 | L10: 3,73 | M10: 3.62 | N10: 3.02 | O10: 3.85
A11: maximum | B11: USD | C11: 31.4 | D11: 52.64 | E11: 58.5 | F11: 62.5 | G11: 27.3 | H11: 26.64 | I11: 17.4 | J11: 13.53 | K11: 9.82 | L11: 9,06 | M11: 6.24 | N11: 5.27 | O11: 5.27
A12: Number of PJSC Gazprom’s ordinary shares issued, as at the end of the year | B12: mm shares | C12: 23674 | D12: 23674 | E12: 23674 | F12: 23674 | G12: 23674 | H12: 23674 | I12: 23674 | J12: 23674 | K12: 23674 | L12: 23 674 | M12: 23 674 | N12: 23673.5129 | O12: 23673.5129
A13: Number of ordinary shares held by the subsidiaries of PJSC Gazprom, as at the end of the year | B13: mm shares | C13: 848 | D13: 749 | E13: 66 | F13: 30 | G13: 724 | H13: 723 | I13: 726 | J13: 724 | K13: 723 | L13: 723 | M13: 723 | N13: 1573 | O13: 1573
A14: Number of ordinary shares issued less shares held by the subsidiaries of PJSC Gazprom, as at the end of the year** | B14: mm shares | C14: =C12-C13 -> 22826 | D14: 22925 | E14: 23608 | F14: 23644 | G14: 22950 | H14: 22951 | I14: 22948 | J14: 22950 | K14: 22 951 | L14: 22 951 | M14: 22 951 | N14: 22101 | O14: 22101
A15: Market capitalization as at the end of the year*** | B15: USD bn | C15: 160.3 | D15: 272 | E15: 330.9 | F15: 86 | G15: 144.5 | H15: 150.9 | I15: 122.6 | J15: 111.6 | K15: 99.9 | L15: 54,8 | M15: 44.2 | N15: 60.3 | O15: 53.6
A16: change (y-o-y) | B16: % | C16: 1.418 | D16: =ROUND((D15-C15)/C15,3) -> 0.697 | E16: 0.217 | F16: -0.74 | G16: 0.68 | H16: 0.044 | I16: -0.188 | J16: -0.09 | K16: -0.105 | L16: -0.451 | M16: -0.193 | N16: 0.364 | O16: =O15/N15-1 -> -0.1111111111
A17: MOEX index (former MICEX index) | B17: points | C17: 1011 | D17: 1693 | E17: 1889 | F17: 620 | G17: 1370 | H17: 1688 | I17: 1402 | J17: 1475 | K17: 1504 | L17: 1 397 | M17: 1761 | N17: 2233 | O17: 2110
A18: change (y-o-y) | B18: % | C18: 0.832 | D18: =ROUND((D17-C17)/C17,3) -> 0.675 | E18: 0.116 | F18: -0.672 | G18: 1.21 | H18: 0.232 | I18: -0.169 | J18: 0.052 | K18: 0.02 | L18: -0.071 | M18: 0.261 | N18: 0.268 | O18: =O17/N17-1 -> -0.05508284819
A19: RTS index | B19: points | C19: 1126 | D19: 1922 | E19: 2291 | F19: 632 | G19: 1445 | H19: 1770 | I19: 1382 | J19: 1527 | K19: 1443 | L19: 791 | M19: 757 | N19: 1152 | O19: 1154
A20: change (y-o-y) | B20: % | C20: 0.858 | D20: =ROUND((D19-C19)/C19,3) -> 0.707 | E20: 0.192 | F20: -0.724 | G20: 1.286 | H20: 0.225 | I20: -0.219 | J20: 0.105 | K20: -0.055 | L20: -0.452 | M20: -0.043 | N20: 0.522 | O20: =O19/N19-1 -> 0.001736111111
A21: Daily average trading volume, Moscow Exchange | B21: mm shares | C21: 20.8 | D21: 49.2 | E21: 47.8 | F21: 67.2 | G21: 85.2 | H21: 56.4 | I21: 74.6 | J21: 39.4 | K21: 43.9 | L21: 52,5 | M21: 32.5 | N21: 29.9 | O21: 28.8
A22: Daily average trading volume, LSE | B22: mm ADRs | C22: 1.7 | D22: 4.4 | E22: 7.2 | F22: 16.9 | G22: 12.6 | H22: 13.7 | I22: 43.2 | J22: 32.1 | K22: 25 | L22: 27,6 | M22: 16.4 | N22: 15.9 | O22: 12
A23: Dividend per share**** | B23: RUB | C23: 1.5 | D23: 2.54 | E23: 2.66 | F23: 0.36 | G23: 2.39 | H23: 3.85 | I23: 8.97 | J23: 5.99 | K23: 7.2 | L23: 7,20 | M23: 7.89 | N23: 8.0397 | O23: 8.04
A24: Share capital structure
A25: Shareholding controlled by the Russian Federation
A26: Federal Agency for State Property Management | B26: % | C26: 0.38373 | D26: 0.38373 | E26: 0.38373 | F26: 0.38373 | G26: 0.38373 | H26: 0.38373 | I26: 0.3837 | J26: 0.3837 | K26: 0.3837 | L26: 0.3837 | M26: 0.3837 | N26: 0.3837 | O26: 0.3837
A27: AO ROSNEFTEGAZ | B27: % | C27: 0.1074 | D27: 0.1074 | E27: 0.1074 | F27: 0.1074 | G27: 0.1074 | H27: 0.1074 | I27: 0.1074 | J27: 0.1074 | K27: 0.1097 | L27: 0.1097 | M27: 0.1097 | N27: 0.1097 | O27: 0.1097
A28: AO Rosgazifikatsiya | B28: % | C28: 0.00889 | D28: 0.00889 | E28: 0.00889 | F28: 0.00889 | G28: 0.00889 | H28: 0.00889 | I28: 0.0089 | J28: 0.0089 | K28: 0.0089 | L28: 0.0089 | M28: 0.0089 | N28: 0.0089 | O28: 0.0089
A29: ADR holders***** | B29: % | C29: 0.04422 | D29: 0.132 | E29: 0.2102 | F29: 0.2215 | G29: 0.2435 | H29: 0.2757 | I29: 0.2835 | J29: 0.2696 | K29: 0.2578 | L29: 0.2805 | M29: 0.2783 | N29: 0.2686 | O29: 0.252
A30: Other registered holders | B30: % | C30: 0.45576 | D30: 0.36798 | E30: 0.28978 | F30: 0.27848 | G30: 0.25648 | H30: 0.22428 | I30: 0.2165 | J30: 0.2304 | K30: 0.2399 | L30: 0.2172 | M30: 0.2194 | N30: 0.2291 | O30: 0.2457
A31: Total | B31: % | C31: =SUM(C26:C30) -> 1 | D31: 1 | E31: 1 | F31: 1 | G31: 1 | H31: 1 | I31: 1 | J31: 1 | K31: 1 | L31: 1 | M31: 1 | N31: 1 | O31: 1
A32: * Before April 2011 1 ADR provided a right for 4 ordinary shares of OAO Gazprom. Since April 2011 onwards 1 ADR provides a right for 2 ordinary shares of OAO Gazprom (after 17 July 2015 — PJSC Gazprom).
A33: ** As at 31 December of the respective year, there were no ordinary shares of PJSC Gazprom which belong to the Company.
A34: *** Market capitalization based on Moscow Exchange share price converted into USD.
A35: **** For 2017 — recommended dividends.
A36: ***** The Bank of New York Mellon issued ADRs on PJSC Gazprom’s shares.
A38: Back to Contents

Sheet Reserves
A1: Exploration and Production in Russia
A2: Reserves
A3: Hydrocarbon reserves of Gazprom Group in Russia
A4: (including share in reserves of entities, investments in which are classified as joint operations)
A5: Metric units
B6: As at 31 December
B7: 2005* | C7: 2006* | D7: 2007* | E7: 2008* | F7: 2009* | G7: 2010* | H7: 2011* | I7: 2012 | J7: 2013 | K7: 2014 | L7: 2015 | M7: 2016 | N7: 2017
A8: Natural gas, bcm
A9: Reserves, Russian classification | B9: 29130.7 | C9: 29854.2 | D9: 29785.4 | E9: 33123.2 | F9: 33578.4 | G9: 33052.3 | H9: 35046.9 | I9: 35169.8 | J9: 35696.6 | K9: 36101.4 | L9: 36147.3 | M9: 36443.9 | N9: 35355.4
A10: share audited under PRMS standards | B10: 0.95 | C10: 0.93 | D10: 0.95 | E10: 0.88 | F10: 0.89 | G10: 0.93 | H10: 0.9 | I10: 0.94 | J10: 0.93 | K10: 0.94 | L10: 0.94 | M10: 0.95 | N10: 0.94
A11: Proved | B11: 16052.1 | C11: 18187.6 | D11: 18286.5 | E11: 18187.8 | F11: 18609.9 | G11: 18991.3 | H11: 19212.6 | I11: 19133 | J11: 18939.3 | K11: 18894.7 | L11: 18791.2 | M11: 18596.5 | N11: 18253.4
A12: Probable | B12: 4757.2 | C12: 2580 | D12: 2551.5 | E12: 3088.2 | F12: 3338.1 | G12: 3529 | H12: 3631.5 | I12: 4254.1 | J12: 4325.2 | K12: 4616 | L12: 4913.8 | M12: 5258.6 | N12: 5893.2
A13: Proved + probable | B13: 20809.3 | C13: 20767.6 | D13: 20838 | E13: 21276 | F13: 21948 | G13: 22520.3 | H13: 22844.1 | I13: 23387.1 | J13: 23264.5 | K13: 23510.7 | L13: 23705 | M13: 23855.1 | N13: 24146.6
A14: Gas condensate, mm tonnes
A15: Reserves, Russian classification | B15: 1216.3 | C15: 1217 | D15: 1212.5 | E15: 1287.1 | F15: 1325.1 | G15: 1284.8 | H15: 1395.5 | I15: 1386.1 | J15: 1384.4 | K15: 1447 | L15: 1499.5 | M15: 1534.9 | N15: 1595.6
A16: share audited under PRMS standards | B16: 0.9 | C16: 0.9 | D16: 0.9 | E16: 0.85 | F16: 0.82 | G16: 0.86 | H16: 0.83 | I16: 0.89 | J16: 0.89 | K16: 0.92 | L16: 0.92 | M16: 0.94 | N16: 0.93
A17: Proved | B17: 507.9 | C17: 528.9 | D17: 568.9 | E17: 587.9 | F17: 586 | G17: 572.1 | H17: 605.2 | I17: 633.8 | J17: 638.8 | K17: 642.3 | L17: 699.5 | M17: 759.2 | N17: 797.7
A18: Probable | B18: 184.7 | C18: 130.1 | D18: 117.2 | E18: 141.9 | F18: 141.2 | G18: 147.2 | H18: 152.6 | I18: 174.9 | J18: 193.6 | K18: 206.3 | L18: 233.8 | M18: 259.7 | N18: 308
A19: Proved + probable | B19: 692.6 | C19: 659 | D19: 686.1 | E19: 729.8 | F19: 727.2 | G19: 719.3 | H19: 757.8 | I19: 808.7 | J19: 832.4 | K19: 848.6 | L19: 933.3 | M19: 1018.9 | N19: 1105.7
A20: Crude oil, mm tonnes
A21: Reserves, Russian classification | B21: 1357.5 | C21: 1386.9 | D21: 1509.9 | E21: 1601.7 | F21: 1785 | G21: 1732.9 | H21: 1767.3 | I21: 1992.2 | J21: 2019 | K21: 2053.1 | L21: 2082 | M21: 2078.5 | N21: 2045.3
A22: share audited under PRMS standards | B22: 0.93 | C22: 0.93 | D22: 0.93 | E22: 0.92 | F22: 0.85 | G22: 0.9 | H22: 0.89 | I22: 0.89 | J22: 0.89 | K22: 0.91 | L22: 0.92 | M22: 0.93 | N22: 0.94
A23: Proved | B23: 528.8 | C23: 688.9 | D23: 727 | E23: 713.2 | F23: 718.5 | G23: 717.4 | H23: 723.9 | I23: 819.5 | J23: 834.8 | K23: 830.5 | L23: 792.7 | M23: 789.5 | N23: 736.8
A24: Probable | B24: 702.9 | C24: 377.6 | D24: 405.5 | E24: 565 | F24: 435.5 | G24: 464.5 | H24: 492.2 | I24: 588.8 | J24: 572.4 | K24: 543.9 | L24: 562.7 | M24: 589.2 | N24: 623.2
A25: Proved + probable | B25: 1231.7 | C25: 1066.5 | D25: 1132.5 | E25: 1278.2 | F25: 1154 | G25: 1181.9 | H25: 1216.1 | I25: 1408.3 | J25: 1407.2 | K25: 1374.4 | L25: 1355.4 | M25: 1378.7 | N25: 1360
A26: * Excluding share of Gazprom Group in reserves of entities, investments in which are classified as joint operations.
A28: Oil equivalent
B29: As at 31 December
B30: 2005* | C30: 2006* | D30: 2007* | E30: 2008* | F30: 2009* | G30: 2010* | H30: 2011* | I30: 2012 | J30: 2013 | K30: 2014 | L30: 2015 | M30: 2016 | N30: 2017
A31: Natural gas, mm boe
A32: Reserves, Russian classification | B32: =B9*6.49 -> 189058.243 | C32: 193753.758 | D32: 193307.246 | E32: 214969.568 | F32: 217923.816 | G32: 214509.427 | H32: 227454.381 | I32: 228252 | J32: 231670.9 | K32: 234298.1 | L32: 234596 | M32: 236520.9 | N32: 229456.5
A33: Proved | B33: 104178.2 | C33: =C11*6.49 -> 118037.524 | D33: 118679.385 | E33: 118038.822 | F33: 120778.2 | G33: 123253.537 | H33: 124689.774 | I33: 124173.2 | J33: 122916.1 | K33: 122626.6 | L33: 121954.9 | M33: 120691.3 | N33: 118464.5
A34: Probable | B34: =B12*6.49 -> 30874.228 | C34: 16744.2 | D34: 16559.235 | E34: 20042.418 | F34: 21664.269 | G34: 22903.21 | H34: 23568.435 | I34: 27609.1 | J34: 28070.5 | K34: 29957.8 | L34: 31890.6 | M34: 34128.3 | N34: 38246.9
A35: Proved + probable | B35: =B13*6.49 -> 135052.357 | C35: =C13*6.49 -> 134781.724 | D35: 135238.62 | E35: 138081.24 | F35: 142442.52 | G35: 146156.747 | H35: 148258.209 | I35: 151782.3 | J35: 150986.6 | K35: 152584.4 | L35: 153845.5 | M35: 154819.6 | N35: 156711.4
A36: Gas condensate, mm boe
A37: Reserves, Russian classification | B37: 9949.3 | C37: 9955.1 | D37: 9918.3 | E37: 10528.5 | F37: 10839.3 | G37: 10509.7 | H37: 11415.2 | I37: 11338.3 | J37: 11324.4 | K37: 11836.5 | L37: 12265.9 | M37: 12555.5 | N37: 13052
A38: Proved | B38: 4154.6 | C38: 4326.4 | D38: 4653.6 | E38: 4809 | F38: 4793.5 | G38: 4679.8 | H38: 4950.5 | I38: 5184.5 | J38: 5225.4 | K38: 5254 | L38: 5721.9 | M38: 6210.3 | N38: 6525.2
A39: Probable | B39: 1510.9 | C39: 1064.2 | D39: 958.7 | E39: 1160.8 | F39: 1155 | G39: 1204.1 | H39: 1248.3 | I39: 1430.7 | J39: 1583.6 | K39: 1687.5 | L39: 1912.5 | M39: 2124.3 | N39: 2519.4
A40: Proved + probable | B40: 5665.5 | C40: 5390.6 | D40: 5612.3 | E40: 5969.8 | F40: 5948.5 | G40: 5883.9 | H40: 6198.8 | I40: 6615.2 | J40: 6809 | K40: 6941.5 | L40: 7634.4 | M40: 8334.6 | N40: 9044.6
A41: Crude oil, mm boe
A42: Reserves, Russian classification | B42: 9950.5 | C42: 10166 | D42: 11067.6 | E42: 11740.5 | F42: 13084.1 | G42: 12702.2 | H42: 12954.3 | I42: 14602.8 | J42: 14799.3 | K42: 15049.2 | L42: 15261.1 | M42: 15235.4 | N42: 14992.1
A43: Proved | B43: 3876.1 | C43: 5049.6 | D43: 5328.9 | E43: 5227.8 | F43: 5266.6 | G43: 5258.5 | H43: 5306.2 | I43: 6006.9 | J43: 6119.1 | K43: 6087.6 | L43: 5810.5 | M43: 5787 | N43: 5400.7
A44: Probable | B44: 5152.3 | C44: 2767.8 | D44: 2972.3 | E44: 4141.4 | F44: 3192.2 | G44: 3404.8 | H44: 3607.8 | I44: 4315.9 | J44: 4195.7 | K44: 3986.8 | L44: 4124.6 | M44: 4318.8 | N44: 4568.1
A45: Proved + probable | B45: 9028.4 | C45: 7817.4 | D45: 8301.2 | E45: 9369.2 | F45: 8458.8 | G45: 8663.3 | H45: 8914 | I45: 10322.8 | J45: 10314.8 | K45: 10074.4 | L45: 9935.1 | M45: 10105.9 | N45: 9968.8
A46: Total, mm boe
A47: Reserves, Russian classification | B47: =B32+B37+B42 -> 208958.043 | C47: 213874.858 | D47: 214293.146 | E47: 237238.568 | F47: 241847.216 | G47: 237721.327 | H47: 251823.881 | I47: 254193.1 | J47: 257794.6 | K47: 261183.8 | L47: 262123 | M47: 264311.8 | N47: 257 500,6
A48: Proved | B48: =B33+B38+B43 -> 112208.9 | C48: 127413.524 | D48: 128661.885 | E48: 128075.622 | F48: 130838.3 | G48: 133191.837 | H48: 134946.474 | I48: 135364.6 | J48: 134260.6 | K48: 133968.2 | L48: 133487.3 | M48: 132688.6 | N48: 130 390,4
A49: Probable | B49: =B34+B39+B44 -> 37537.428 | C49: 20576.2 | D49: 20490.235 | E49: 25344.618 | F49: 26011.469 | G49: 27512.11 | H49: 28424.535 | I49: 33355.7 | J49: 33849.8 | K49: 35632.1 | L49: 37927.7 | M49: 40571.5 | N49: 45 334,4
A50: Proved + probable | B50: =B35+B40+B45 -> 149746.257 | C50: 147989.724 | D50: 149152.12 | E50: 153420.24 | F50: 156849.82 | G50: 160703.947 | H50: 163371.009 | I50: 168720.3 | J50: 168110.4 | K50: 169600.3 | L50: 171415 | M50: 173260.1 | N50: 175 724,8
A51: * Excluding share of Gazprom Group in reserves of entities, investments in which are classified as joint operations.
A52: Note. For management accounting purposes, Gazprom Group measures hydrocarbon reserves and production in metric units. In this Factbook, gas reserves are converted from metric units to barrels of oil equivalent at a ratio of 1,000 cubic metres to 6.49 boe.
A54: Hydrocarbon fields and deposits discovered by Gazprom Group in Russia
B55: For the year ended 31 December
B56: 2005* | C56: 2006 | D56: 2007 | E56: 2008 | F56: 2009 | G56: 2010 | H56: 2011 | I56: 2012 | J56: 2013 | K56: 2014 | L56: 2015 | M56: 2016 | N56: 2017
A57: Gazprom Group
A58: Fields | B58: 3 | C58: 4 | D58: 3 | E58: 3 | F58: 7 | G58: 3 | H58: 5 | I58: 5 | J58: 2 | K58: 1 | L58: 2 | M58: 2 | N58: 4
A59: Deposits in previously discovered fields | B59: 14 | C59: 30 | D59: 24 | E59: 22 | F59: 14 | G59: 26 | H59: 28 | I59: 49 | J59: 27 | K59: 37 | L59: 22 | M59: 15 | N59: 47
A60: Entities in which Gazprom has investments classified as joint operations
A61: Fields | B61: x | C61: x | D61: x | E61: x | F61: x | G61: x | H61: x | I61: – | J61: – | K61: – | L61: – | M61: – | N61: 1
A62: Deposits in previously discovered fields | B62: x | C62: x | D62: x | E62: x | F62: x | G62: x | H62: x | I62: 2 | J62: 1 | K62: 2 | L62: 6 | M62: 3 | N62: 5
A63: * Excluding Gazprom Neft Group.
A65: Replacement ratio of Gazprom Group’s hydrocarbon reserves, Russian classification of reserves
A66: (including share in reserves of entities, investments in which are classified as joint operations)
B67: For the year ended 31 December
B68: 2005* | C68: 2006* | D68: 2007* | E68: 2008* | F68: 2009* | G68: 2010* | H68: 2011* | I68: 2012* | J68: 2013 | K68: 2014 | L68: 2015 | M68: 2016 | N68: 2017
A69: Natural gas | B69: 1 | C69: 1.1 | D69: 1.1 | E69: 1.1 | F69: 1 | G69: 1.1 | H69: 1.4 | I69: 1.18 | J69: 1.33 | K69: 1.86 | L69: 1.27 | M69: 1.1 | N69: 1.82
A70: Gas condensate | B70: 1.82 | C70: 1.42 | D70: 1.18 | E70: 0.86 | F70: 5.28 | G70: 3.99 | H70: 4.41 | I70: 2.31 | J70: 0.52 | K70: 10.88 | L70: 6.12 | M70: 3.25 | N70: 7.97
A71: Crude oil | B71: 0.51 | C71: 1.38 | D71: 0.59 | E71: 1.69 | F71: 1.83 | G71: 2.6 | H71: 1.78 | I71: 1.67 | J71: 1.14 | K71: 0.57 | L71: 0.47 | M71: 0.41 | N71: 0.07
A72: Total | B72: 1.02 | C72: 1.09 | D72: 1.04 | E72: 1.1 | F72: 1.15 | G72: 1.24 | H72: 1.49 | I72: 1.24 | J72: 1.29 | K72: 1.95 | L72: 1.32 | M72: 1.08 | N72: 1.81
A73: * Excluding share of Gazprom Group in reserves of entities, investments in which are classified as joint operations.
A75: Years of Gazprom Group’s hydrocarbon reserves, Russian classification of reserves
A76: (including share in reserves of entities, investments in which are classified as joint operations)
H77: As at 31 December
H78: 2011* | I78: 2012* | J78: 2013 | K78: 2014 | L78: 2015 | M78: 2016 | N78: 2017
A79: Natural gas | H79: 69 | I79: 73 | J79: 73 | K79: 82 | L79: 87 | M79: 87 | N79: 75
A80: Crude oil | H80: 54 | I80: 54 | J80: 48 | K80: 47 | L80: 47 | M80: 44 | N80: 43
A81: * Excluding share of Gazprom Group in reserves of entities, investments in which are classified as joint operations.
A83: Natural gas reserves of Gazprom Group in Russia, PRMS standards, bcm
A84: (including share in reserves of entities, investments in which are classified as joint operations)
B85: As at 31 December
B86: 2005* | C86: 2006* | D86: 2007* | E86: 2008* | F86: 2009* | G86: 2010* | H86: 2011* | I86: 2012 | J86: 2013 | K86: 2014 | L86: 2015 | M86: 2016 | N86: 2017
A87: PJSC Gazprom and its major subsidiaries**
A88: Proved | B88: 15714.7 | C88: 17902.5 | D88: 17319.5 | E88: 17196.8 | F88: 17645.5 | G88: 18029.4 | H88: 18208.1 | I88: 18133.7 | J88: 18036.7 | K88: 18023.7 | L88: 17942.5 | M88: 17780.9 | N88: 17 429,6
A89: Probable | B89: =IF(4672<>B90-B88,B90-B88,4672) -> 4671.9 | C89: 2572.4 | D89: 2539.4 | E89: 2908.8 | F89: 3255.2 | G89: 3420.6 | H89: 3505.7 | I89: 4068.2 | J89: 4072.4 | K89: 4303.7 | L89: 4587.6 | M89: 4930.2 | N89: 5 536,8
A90: Proved + probable | B90: 20386.6 | C90: 20474.9 | D90: 19858.9 | E90: 20105.6 | F90: 20900.7 | G90: 21450 | H90: 21713.8 | I90: 22201.9 | J90: 22109.1 | K90: 22327.4 | L90: 22530.1 | M90: 22711.1 | N90: 22 966,4
A91: PAO Gazprom Neft and its subsidiaries
A92: Proved | B92: 66.8 | C92: 29.5 | D92: 20.6 | E92: 73.2 | F92: 80.7 | G92: 118.9 | H92: 147.2 | I92: 193.8 | J92: 216.7 | K92: 223.5 | L92: 239.5 | M92: 243 | N92: 288.2
A93: Probable | B93: 81.3 | C93: 3.6 | D93: 1.8 | E93: 169.1 | F93: 72.6 | G93: 98.1 | H93: 106.4 | I93: 133.1 | J93: 111.3 | K93: 168.3 | L93: 182.1 | M93: 183 | N93: 210.5
A94: Proved + probable | B94: 148.1 | C94: 33.1 | D94: 22.4 | E94: 242.3 | F94: 153.3 | G94: 217 | H94: 253.6 | I94: 326.9 | J94: 328 | K94: 391.8 | L94: 421.6 | M94: 426 | N94: 498.7
A95: ZAO Purgaz
A96: Proved | B96: 270.6 | C96: 255.6 | D96: 233.1 | E96: 217.9 | F96: 206.4 | G96: 191.3 | H96: 188 | I96: 172.9 | J96: 158.3 | K96: 145 | L96: 132.3 | M96: 120.6 | N96: 109.7
A97: Probable | B97: 4 | C97: 4 | D97: 3.9 | E97: 3.9 | F97: 3.9 | G97: 3.9 | H97: 12.8 | I97: 12.9 | J97: 12.9 | K97: 12.9 | L97: 12.9 | M97: 12.9 | N97: 12.9
A98: Proved + probable | B98: 274.6 | C98: 259.6 | D98: 237 | E98: 221.8 | F98: 210.3 | G98: 195.2 | H98: 200.8 | I98: 185.8 | J98: 171.2 | K98: 157.9 | L98: 145.2 | M98: 133.5 | N98: 122.6
A99: OAO Severneftegazprom
A100: Proved | B100: x | C100: x | D100: 713.3 | E100: 699.9 | F100: 677.3 | G100: 651.7 | H100: 669.3 | I100: 613.7 | J100: 510 | K100: 484.9 | L100: 459.8 | M100: 434.6 | N100: 409.9
A101: Probable | B101: x | C101: x | D101: 6.4 | E101: 6.4 | F101: 6.4 | G101: 6.4 | H101: 6.6 | I101: 36.8 | J101: 125.7 | K101: 125.7 | L101: 125.7 | M101: 125.7 | N101: 125.5
A102: Proved + probable | B102: x | C102: x | D102: 719.7 | E102: 706.3 | F102: 683.7 | G102: 658.1 | H102: 675.9 | I102: 650.5 | J102: 635.7 | K102: 610.6 | L102: 585.5 | M102: 560.3 | N102: 535.4
A103: Total (excluding share in reserves of entities, investments in which are classified as joint operations)
A104: Proved | B104: 16052.1 | C104: 18187.6 | D104: 18286.5 | E104: 18187.8 | F104: 18609.9 | G104: 18991.3 | H104: 19212.6 | I104: 19114.1 | J104: 18921.7 | K104: 18877.1 | L104: 18774.1 | M104: 18579.1 | N104: 18 237,4
A105: Probable | B105: 4757.2 | C105: 2580 | D105: 2551.5 | E105: 3088.2 | F105: 3338.1 | G105: 3529 | H105: 3631.5 | I105: 4251 | J105: 4322.3 | K105: 4610.6 | L105: 4908.3 | M105: 5251.8 | N105: 5 885,7
A106: Proved + probable | B106: 20809.3 | C106: 20767.6 | D106: 20838 | E106: 21276 | F106: 21948 | G106: 22520.3 | H106: 22844.1 | I106: 23365.1 | J106: 23244 | K106: 23487.7 | L106: 23682.4 | M106: 23830.9 | N106: 24123.1
A107: Entities, investments in which are classified as joint operations (attributable to the share of Gazprom Group)
A108: Proved | B108: x | C108: x | D108: x | E108: x | F108: x | G108: x | H108: x | I108: 18.9 | J108: 17.6 | K108: 17.6 | L108: 17.1 | M108: 17.4 | N108: 16
A109: Probable | B109: x | C109: x | D109: x | E109: x | F109: x | G109: x | H109: x | I109: 3.1 | J109: 2.9 | K109: 5.4 | L109: 5.5 | M109: 6.8 | N109: 7.5
A110: Proved + probable | B110: x | C110: x | D110: x | E110: x | F110: x | G110: x | H110: x | I110: 22 | J110: 20.5 | K110: 23 | L110: 22.6 | M110: 24.2 | N110: 23.5
A111: Total (including share in reserves of entities, investments in which are classified as joint operations)
A112: Proved | B112: x | C112: x | D112: x | E112: x | F112: x | G112: x | H112: x | I112: 19133 | J112: 18939.3 | K112: 18894.7 | L112: 18791.2 | M112: 18596.5 | N112: 18 253,4
A113: Probable | B113: x | C113: x | D113: x | E113: x | F113: x | G113: x | H113: x | I113: 4254.1 | J113: 4325.2 | K113: 4616 | L113: 4913.8 | M113: 5258.6 | N113: 5 893,2
A114: Proved + probable | B114: x | C114: x | D114: x | E114: x | F114: x | G114: x | H114: x | I114: 23387.1 | J114: 23264.5 | K114: 23510.7 | L114: 23705 | M114: 23855.1 | N114: 24 146,6
A115: * Excluding share of Gazprom Group in reserves of entities, investments in which are classified as joint operations.
A116: ** For the list of major subsidiaies, see Glossary.
A118: Gas condensate reserves of Gazprom Group in Russia, PRMS standards, mm tonnes
A119: (including share in reserves of entities, investments in which are classified as joint operations)
B120: As at 31 December
B121: 2005* | C121: 2006* | D121: 2007* | E121: 2008* | F121: 2009* | G121: 2010* | H121: 2011* | I121: 2012 | J121: 2013 | K121: 2014 | L121: 2015 | M121: 2016 | N121: 2017
A122: PJSC Gazprom and its major subsidiaries**
A123: Proved | B123: 507.9 | C123: 528.9 | D123: 568.9 | E123: 587.9 | F123: 586 | G123: 572.1 | H123: 605.2 | I123: 633.8 | J123: 634.4 | K123: 637.3 | L123: 691.9 | M123: 751.7 | N123: 788.9
A124: Probable | B124: 184.7 | C124: 130.1 | D124: 117.2 | E124: 141.9 | F124: 141.2 | G124: 147.2 | H124: 152.6 | I124: 174.9 | J124: 190.3 | K124: 202.8 | L124: 230.2 | M124: 257 | N124: 303.5
A125: Proved + probable | B125: 692.6 | C125: 659 | D125: 686.1 | E125: 729.8 | F125: 727.2 | G125: 719.3 | H125: 757.8 | I125: 808.7 | J125: 824.7 | K125: 840.1 | L125: 922.1 | M125: 1008.7 | N125: 1 092,4
A126: PAO Gazprom Neft and its subsidiaries
A127: Proved*** | B127: x | C127: x | D127: x | E127: x | F127: x | G127: x | H127: x | I127: x | J127: 4.4 | K127: 5 | L127: 7.6 | M127: 7.5 | N127: 8.8
A128: Probable*** | B128: x | C128: x | D128: x | E128: x | F128: x | G128: x | H128: x | I128: x | J128: 3.3 | K128: 3.5 | L128: 3.6 | M128: 2.7 | N128: 4.5
A129: Proved + probable*** | B129: x | C129: x | D129: x | E129: x | F129: x | G129: x | H129: x | I129: x | J129: 7.7 | K129: 8.5 | L129: 11.2 | M129: 10.2 | N129: 13.3
A130: Total
A131: Proved | B131: 507.9 | C131: 528.9 | D131: 568.9 | E131: 587.9 | F131: 586 | G131: 572.1 | H131: 605.2 | I131: 633.8 | J131: 638.8 | K131: 642.3 | L131: 699.5 | M131: 759.2 | N131: 797.7
A132: Probable | B132: 184.7 | C132: 130.1 | D132: 117.2 | E132: 141.9 | F132: 141.2 | G132: 147.2 | H132: 152.6 | I132: 174.9 | J132: 193.6 | K132: 206.3 | L132: 233.8 | M132: 259.7 | N132: 308
A133: Proved + probable | B133: 692.6 | C133: 659 | D133: 686.1 | E133: 729.8 | F133: 727.2 | G133: 719.3 | H133: 757.8 | I133: 808.7 | J133: 832.4 | K133: 848.6 | L133: 933.3 | M133: 1 018,9 | N133: 1 105,7
A134: * Excluding share of Gazprom Group in reserves of entities, investments in which are classified as joint operations.
A135: ** For the list of major subsidiaries, see Glossary.
A136: *** For reserves prior to 31 December 2013, gas condensate reserves of Gazprom Neft Group were included in oil reserves.
A138: Oil reserves of Gazprom Group in Russia, PRMS standards, mm tonnes
A139: (including share in reserves of entities, investments in which are classified as joint operations)
B140: As at 31 December
B141: 2005* | C141: 2006* | D141: 2007* | E141: 2008* | F141: 2009* | G141: 2010* | H141: 2011* | I141: 2012 | J141: 2013 | K141: 2014 | L141: 2015 | M141: 2016 | N141: 2017
A142: PJSC Gazprom and its major subsidiaries**
A143: Proved | B143: 67.3 | C143: 87.1 | D143: 76.9 | E143: 97.6 | F143: 93 | G143: 82.9 | H143: 57.3 | I143: 58.9 | J143: 55.5 | K143: 55.6 | L143: 44.7 | M143: 44.6 | N143: 16.5
A144: Probable | B144: 232.2 | C144: 203.8 | D144: 210 | E144: 185.7 | F144: 159.8 | G144: 179.1 | H144: 171.2 | I144: 105 | J144: 121 | K144: 45.9 | L144: 35 | M144: 35 | N144: 46.5
A145: Proved + probable | B145: 299.5 | C145: 290.9 | D145: 286.9 | E145: 283.3 | F145: 252.8 | G145: 262 | H145: 228.5 | I145: 163.9 | J145: 176.5 | K145: 101.5 | L145: 79.7 | M145: 79.6 | N145: 63
A146: PAO Gazprom Neft and its subsidiaries
A147: Proved | B147: 461.5 | C147: 601.8 | D147: 650.1 | E147: 615.6 | F147: 625.5 | G147: 634.5 | H147: 666.6 | I147: 654.9 | J147: 683.9 | K147: 675.9 | L147: 655.6 | M147: 652.8 | N147: 630.8
A148: Probable | B148: 470.7 | C148: 173.8 | D148: 195.5 | E148: 379.3 | F148: 275.7 | G148: 285.4 | H148: 321 | I148: 418.8 | J148: 393.8 | K148: 432.8 | L148: 458.7 | M148: 486.1 | N148: 507.4
A149: Proved + probable | B149: 932.2 | C149: 775.6 | D149: 845.6 | E149: 994.9 | F149: 901.2 | G149: 919.9 | H149: 987.6 | I149: 1073.7 | J149: 1077.7 | K149: 1108.7 | L149: 1114.3 | M149: 1138.9 | N149: 1 138,2
A150: Total (excluding share in reserves of entities, investments in which are classified as joint operations)
A151: Proved | B151: 528.8 | C151: 688.9 | D151: 727 | E151: 713.2 | F151: 718.5 | G151: 717.4 | H151: 723.9 | I151: 713.8 | J151: 739.4 | K151: 731.5 | L151: 700.3 | M151: 697.4 | N151: 647.3
A152: Probable | B152: 702.9 | C152: 377.6 | D152: 405.5 | E152: 565 | F152: 435.5 | G152: 464.5 | H152: 492.2 | I152: 523.8 | J152: 514.8 | K152: 478.7 | L152: 493.7 | M152: 521.1 | N152: 553.9
A153: Proved + probable | B153: 1231.7 | C153: 1066.5 | D153: 1132.5 | E153: 1278.2 | F153: 1154 | G153: 1181.9 | H153: 1216.1 | I153: 1237.6 | J153: 1254.2 | K153: 1210.2 | L153: 1194 | M153: 1218.5 | N153: 1 201,2
A154: Entities, investments in which are classified as joint operations (attributable to the share of Gazprom Group)
A155: Proved | B155: x | C155: x | D155: x | E155: x | F155: x | G155: x | H155: x | I155: 105.7 | J155: 95.4 | K155: 99.1 | L155: 92.4 | M155: 92.1 | N155: 89.5
A156: Probable | B156: x | C156: x | D156: x | E156: x | F156: x | G156: x | H156: x | I156: 65 | J156: 57.6 | K156: 65.1 | L156: 69 | M156: 68.1 | N156: 69.3
A157: Proved + probable | B157: х | C157: х | D157: х | E157: х | F157: х | G157: х | H157: х | I157: 170.7 | J157: 153 | K157: 164.2 | L157: 161.4 | M157: 160.2 | N157: 158.8
A158: Total (including share in reserves of entities, investments in which are classified as joint operations)
A159: Proved | B159: x | C159: x | D159: x | E159: x | F159: x | G159: x | H159: x | I159: 819.5 | J159: 834.8 | K159: 830.5 | L159: 792.7 | M159: 789.5 | N159: 736.8
A160: Probable | B160: x | C160: x | D160: x | E160: x | F160: x | G160: x | H160: x | I160: 588.8 | J160: 572.4 | K160: 543.9 | L160: 562.7 | M160: 589.2 | N160: 623.2
A161: Proved + probable | B161: x | C161: x | D161: x | E161: x | F161: x | G161: x | H161: x | I161: 1408.3 | J161: 1407.2 | K161: 1374.4 | L161: 1355.4 | M161: 1378.7 | N161: 1 360,0
A162: * Excluding share of Gazprom Group in reserves of entities, investments in which are classified as joint operations.
A163: ** For the list of major subsidiaries, see Glossary.
A165: Hydrocarbon reserves of Gazprom Group in Russia, Russian classification of reserves
A166: (including share in reserves of entities, investments in which are classified as joint operations)
B167: As at 31 December
B168: 2005* | C168: 2006* | D168: 2007* | E168: 2008* | F168: 2009* | G168: 2010* | H168: 2011* | I168: 2012 | J168: 2013 | K168: 2014 | L168: 2015 | M168: 2016 | N168: 2017
A169: Natural gas, bcm
A170: Ural FD | B170: 22341.2 | C170: 21937.3 | D170: 21514.1 | E170: 24265.2 | F170: 24390.6 | G170: 23566.8 | H170: 23401.1 | I170: 23144.2 | J170: 22456.6 | K170: 22032.2 | L170: 21613.5 | M170: 21309 | N170: 20 302,6
A171: North-Western FD | B171: 94.2 | C171: 93.2 | D171: 93.3 | E171: 92.2 | F171: 90.4 | G171: 89.3 | H171: 88.2 | I171: 87.4 | J171: 86.9 | K171: 85.8 | L171: 85.1 | M171: 307.3 | N171: 319.3
A172: South FD and Nortern Caucasian FD | B172: 2616.6 | C172: 2594.8 | D172: 2581.8 | E172: 2569 | F172: 2560.7 | G172: 2545.4 | H172: 2523.1 | I172: 2510.5 | J172: 2498.9 | K172: 2997.4 | L172: 2985.3 | M172: 2973.1 | N172: 2 961,1
A173: Volga FD | B173: 830.4 | C173: 810.6 | D173: 792.8 | E173: 774.7 | F173: 758.5 | G173: 751.3 | H173: 735.4 | I173: 717.8 | J173: 696.2 | K173: 684.1 | L173: 663.5 | M173: 648.9 | N173: 640.7
A174: Siberian FD | B174: 303.9 | C174: 295 | D174: 275.5 | E174: 291.7 | F174: 284.7 | G174: 308.3 | H174: 1668.1 | I174: 1737.5 | J174: 1755.1 | K174: 1936.7 | L174: 1971.6 | M174: 2103.3 | N174: 2 102,1
A175: Far Eastern FD | B175: 8.8 | C175: 8.8 | D175: 22 | E175: 401.7 | F175: 402.2 | G175: 456.6 | H175: 1106.2 | I175: 1181 | J175: 1197.2 | K175: 1197.2 | L175: 1402.1 | M175: 1488.3 | N175: 1 420,1
A176: Continental shelf of the Russian Federation | B176: 2935.6 | C176: 4114.5 | D176: 4505.9 | E176: 4728.7 | F176: 5091.3 | G176: 5334.6 | H176: 5524.8 | I176: 5791.4 | J176: 7005.7 | K176: 7168 | L176: 7426.2 | M176: 7614 | N176: 7 609,5
A177: Total | B177: 29130.7 | C177: 29854.2 | D177: 29785.4 | E177: =SUM(E170:E176) -> 33123.2 | F177: =SUM(F170:F176) -> 33578.4 | G177: =SUM(G170:G176) -> 33052.3 | H177: 35046.9 | I177: 35169.8 | J177: 35696.6 | K177: 36101.4 | L177: 36147.3 | M177: 36443.9 | N177: 35 355,4
A178: Gas condensate, mm tonnes
A179: Ural FD | B179: 688.4 | C179: 689.7 | D179: 690.2 | E179: 760.4 | F179: 770.9 | G179: 724 | H179: 730.5 | I179: 713.8 | J179: 712.4 | K179: 675.7 | L179: 695.2 | M179: 690.6 | N179: 750
A180: North-Western FD | B180: 21.5 | C180: 21.3 | D180: 21.3 | E180: 21.2 | F180: 20.9 | G180: 20.8 | H180: 20.7 | I180: 20.6 | J180: 20.6 | K180: 20.5 | L180: 20.5 | M180: 31.3 | N180: 33.1
A181: South FD and Nortern Caucasian FD | B181: 395.8 | C181: 392.4 | D181: 389.2 | E181: 386 | F181: 383.5 | G181: 380.6 | H181: 377.4 | I181: 374.3 | J181: 371.5 | K181: 447.5 | L181: 444.7 | M181: 441.9 | N181: 439
A182: Volga FD | B182: 59.2 | C182: 58.7 | D182: 58 | E182: 57.5 | F182: 57.2 | G182: 57.4 | H182: 57.1 | I182: 57.4 | J182: 56.9 | K182: 56.5 | L182: 56 | M182: 55.7 | N182: 55.6
A183: Siberian FD | B183: 26.9 | C183: 26.3 | D183: 21.8 | E183: 22.6 | F183: 21.1 | G183: 21.2 | H183: 89.9 | I183: 92.8 | J183: 91.4 | K183: 92.6 | L183: 92.3 | M183: 97 | N183: 96.9
A184: Far Eastern FD | B184: 0.1 | C184: 0.1 | D184: 0.1 | E184: 5.8 | F184: 6 | G184: 6.9 | H184: 25.2 | I184: 26.4 | J184: 27.3 | K184: 27.3 | L184: 29.6 | M184: 30.5 | N184: 29.4
A185: Continental shelf of the Russian Federation | B185: 24.4 | C185: 28.5 | D185: 31.9 | E185: 33.6 | F185: 65.5 | G185: 73.9 | H185: 94.7 | I185: 100.8 | J185: 104.3 | K185: 126.9 | L185: 161.2 | M185: 187.9 | N185: 191.6
A186: Total | B186: 1216.3 | C186: 1217 | D186: 1212.5 | E186: =SUM(E179:E185) -> 1287.1 | F186: =SUM(F179:F185) -> 1325.1 | G186: =SUM(G179:G185) -> 1284.8 | H186: 1395.5 | I186: 1386.1 | J186: 1384.4 | K186: 1447 | L186: 1499.5 | M186: 1534.9 | N186: 1 595,6
A187: Crude oil, mm tonnes
A188: Ural FD | B188: 1152 | C188: 1146 | D188: 1261.1 | E188: 1303.1 | F188: 1461.6 | G188: 1400.1 | H188: 1400.3 | I188: 1532.9 | J188: 1550.9 | K188: 1560.1 | L188: 1541.6 | M188: 1531.3 | N188: 1 494,3
A189: North-Western FD | B189: 2.1 | C189: 13.5 | D189: 14.2 | E189: 15.7 | F189: 16.9 | G189: 17.3 | H189: 17.3 | I189: 4.8 | J189: 4.8 | K189: 4.8 | L189: 5.6 | M189: 19.8 | N189: 20.3
A190: South FD and Nortern Caucasian FD | B190: 3.5 | C190: 4.5 | D190: 5.4 | E190: 8.8 | F190: 9.7 | G190: 10.6 | H190: 7.4 | I190: 7.3 | J190: 8 | K190: 7.9 | L190: 8 | M190: 7.9 | N190: 7.8
A191: Volga FD | B191: 118.6 | C191: 134.3 | D191: 133.9 | E191: 133.3 | F191: 145.1 | G191: 144.5 | H191: 153.8 | I191: 156.2 | J191: 159 | K191: 159.9 | L191: 200.2 | M191: 202.5 | N191: 228.1
A192: Siberian FD | B192: 31.3 | C192: 38.5 | D192: 44.6 | E192: 47.6 | F192: 58.3 | G192: 61.9 | H192: 86 | I192: 188.5 | J192: 191.4 | K192: 198.9 | L192: 205 | M192: 201.3 | N192: 199.6
A193: Far Eastern FD | B193: 2.7 | C193: 2.7 | D193: 3.3 | E193: 45.8 | F193: 46 | G193: 51.1 | H193: 55.1 | I193: 55.1 | J193: 57.5 | K193: 57.6 | L193: 58.4 | M193: 54.6 | N193: 36.8
A194: Continental shelf of the Russian Federation | B194: 47.3 | C194: 47.4 | D194: 47.4 | E194: 47.4 | F194: 47.4 | G194: 47.4 | H194: 47.4 | I194: 47.4 | J194: 47.4 | K194: 63.9 | L194: 63.2 | M194: 61.1 | N194: 58.4
A195: Total | B195: 1357.5 | C195: 1386.9 | D195: 1509.9 | E195: =SUM(E188:E194) -> 1601.7 | F195: =SUM(F188:F194) -> 1785 | G195: =SUM(G188:G194) -> 1732.9 | H195: 1767.3 | I195: 1992.2 | J195: 2019 | K195: 2053.1 | L195: 2082 | M195: 2078.5 | N195: 2 045,3
A196: * Excluding share of Gazprom Group in reserves of entities, investments in which are classified as joint operations.
A197: Note. Until 2016 hydrocarbon reserves are given under A+B+C1 classification, since 1 January 2016 – under A+B1+C1 classification. Under the new classification of Reserves and Resources of Oil and Flammable Gases, approved by the Ministry of Natural Resources and Environment of the Russian Federation, Decree No. 477 dated 1 November 2013 and effective from 1 January 2016, grades A+B1+C1 are explored reserves of high geological certainty and correspond to previously used A+B+C1.
A199: Back to Contents

Sheet Reserves of assoc. and JV
A1: Hydrocarbon reserves of the associated and jointly controlled companies in Russia attributable to the share of Gazprom Group, Russian classification of reserves)
A2: Metric units
B3: As at 31 December
B4: 2010* | C4: 2011* | D4: 2012 | E4: 2013 | F4: 2014 | G4: 2015 | H4: 2016 | I4: 2017
A5: Natural gas, bcm | B5: 645.4 | C5: 717.4 | D5: 732.2 | E5: 851.5 | F5: 971.7 | G5: 1035.5 | H5: 999.1 | I5: 1 003,8
A6: Gas condensate, mm tonnes | B6: 57.8 | C6: 60.1 | D6: 62 | E6: 80.1 | F6: 97 | G6: 112.1 | H6: 104.5 | I6: 100.8
A7: Crude oil, mm tonnes | B7: 611.8 | C7: 728.6 | D7: 518.3 | E7: 542 | F7: 575.4 | G7: 566.9 | H7: 571.5 | I7: 578.3
A8: * Including share of Gazprom Group in reserves of entities, investments in which are classified as joint operations.
A10: Oil equivalent
B11: As at 31 December
B12: 2010* | C12: 2011* | D12: 2012 | E12: 2013 | F12: 2014 | G12: 2015 | H12: 2016 | I12: 2017
A13: Natural gas, mm boe | B13: =B5*6.49 -> 4188.646 | C13: 4655.926 | D13: 4751.978 | E13: 5526.235 | F13: 6306.333 | G13: 6720.395 | H13: =H5*6.49 -> 6484.159 | I13: 6 514,7
A14: Gas condensate, mm boe | B14: =B6*8.18 -> 472.804 | C14: 491.618 | D14: 507.16 | E14: 655.218 | F14: 793.46 | G14: 916.978 | H14: =H6*8.18 -> 854.81 | I14: 824.5
A15: Crude oil, mm boe | B15: 4484.5 | C15: 5340.6 | D15: 3799.1 | E15: 3972.9 | F15: 4217.7 | G15: 4155.4 | H15: =H7*7.33 -> 4189.095 | I15: 4 238,9
A16: Total, mm boe | B16: =B13+B14+B15 -> 9145.95 | C16: 10488.144 | D16: 9058.238 | E16: 10154.353 | F16: 11317.493 | G16: 11792.773 | H16: =H13+H14+H15 -> 11528.064 | I16: 11 578,1
A17: * Including share of Gazprom Group in reserves of entities, investments in which are classified as joint operations.
A18: Note. For management accounting purposes, Gazprom Group measures hydrocarbon reserves and production in metric units. In this Factbook, gas reserves are converted from metric units to barrels of oil equivalent at a ratio of 1,000 cubic metres to 6.49 boe.
A20: Back to Contents

Sheet Change in reserves
A1: Change in Gazprom Group’s hydrocarbon reserves in Russia, 2012–2017, Russian classification of reserves
A2: (including share in reserves of entities, investments in which are classified as joint operations)
B3: Natural gas | C3: Gas condensate* | D3: Crude oil
B4: bcm | C4: mm tonnes | D4: mm tonnes
A5: Reserves as at 31 December 2012 | B5: 35169.8 | C5: 1386.1 | D5: 1992.2
A6: Additions to reserves as a result of exploration | B6: 647.8 | C6: 5.4 | D6: 48.2
A7: Transfer of reserves discovered in 2013 to the Undistributed Subsoil Fund of Russia** and to other companies, acquisition from other companies | B7: -137.2 | C7: -1.9 | D7: -1.4
A8: Receipt of licenses, including | B8: 484.1 | C8: 3.6 | D8: –
A9: due to new fields discovery*** | B9: 0.9 | C9: 0.1 | D9: –
A10: due to resolution of the Russian government, without tendering process | B10: 483.2 | C10: 3.5 | D10: –
A11: Return of licenses | B11: – | C11: – | D11: –
A12: Acquisition of assets | B12: 13.7 | C12: 0.5 | D12: –
A13: Disposal of assets | B13: – | C13: – | D13: –
A14: Revaluation | B14: 5.6 | C14: 1.2 | D14: 22.3
A15: Production (including losses) | B15: -487.2**** | C15: -10.5 | D15: -42.3
A16: Reserves as at 31 December 2013 | B16: 35696.6 | C16: 1384.4 | D16: 2019
A17: Additions to reserves as a result of exploration | B17: 822.5 | C17: 114.2 | D17: 24.7
A18: Transfer of reserves discovered in 2014 to the Undistributed Subsoil Fund of Russia** and to other companies, acquisition from other companies | B18: -91.1 | C18: -6.9 | D18: 2.3
A19: Receipt of licenses, including | B19: 182.3 | C19: 2.8 | D19: 5.8
A20: due to new fields discovery*** | B20: – | C20: – | D20: –
A21: due to resolution of the Russian government, without tendering process | B21: – | C21: – | D21: –
A22: Return of licenses | B22: – | C22: – | D22: -0.1
A23: Acquisition of assets | B23: – | C23: – | D23: –
A24: Disposal of assets | B24: – | C24: – | D24: –
A25: Revaluation | B25: -66 | C25: -37 | D25: 44.7
A26: Production (including losses) | B26: -442.9**** | C26: -10.5 | D26: -43.3
A27: Reserves as at 31 December 2014 | B27: 36101.4 | C27: 1447 | D27: 2053.1
A28: Additions to reserves as a result of exploration | B28: 531.1 | C28: 68.5 | D28: 20.6
A29: Transfer of reserves discovered in 2015 to the Undistributed Subsoil Fund of Russia** and to other companies, acquisition from other companies | B29: -62.9 | C29: -4.7 | D29: 0.9
A30: Receipt of licenses, including | B30: – | C30: – | D30: 4.2
A31: due to new fields discovery*** | B31: – | C31: – | D31: –
A32: due to resolution of the Russian government, without tendering process | B32: – | C32: – | D32: –
A33: Return of licenses | B33: – | C33: – | D33: –
A34: Acquisition of assets | B34: – | C34: – | D34: –
A35: Disposal of assets | B35: – | C35: – | D35: –
A36: Revaluation | B36: -5 | C36: -0.1 | D36: 47.1
A37: Production (including losses) | B37: -417.3**** | C37: -11.2 | D37: -43.9
A38: Reserves as at 31 December 2015 | B38: 36147.3 | C38: 1499.5 | D38: 2082
A39: Additions to reserves as a result of exploration | B39: 457.4 | C39: 38 | D39: 19.3
A40: Transfer of reserves discovered in 2016 to the Undistributed Subsoil Fund of Russia** and to other companies, acquisition from other companies | B40: -2.4 | C40: -1.7 | D40: -2
A41: Receipt of licenses, including | B41: 257.5 | C41: 10.9 | D41: 15
A42: due to new fields discovery*** | B42: − | C42: − | D42: −
A43: due to resolution of the Russian government, without tendering process | B43: − | C43: − | D43: −
A44: Return of licenses | B44: -0.6 | C44: − | D44: −
A45: Acquisition of assets | B45: − | C45: − | D45: −
A46: Disposal of assets | B46: − | C46: − | D46: −
A47: Revaluation | B47: 2 | C47: -0.1 | D47: 11.1
A48: Production (including losses) | B48: -417.3**** | C48: -11.7 | D48: -46.9
A49: Reserves as at 31 December 2016 | B49: 36443.9 | C49: 1534.9 | D49: 2078.5
A50: Additions to reserves as a result of exploration | B50: 852.9 | C50: 95.6 | D50: 3.3
A51: Transfer of reserves discovered in 2017 to the Undistributed Subsoil Fund of Russia** and to other companies, acquisition from other companies | B51: -46.4 | C51: − | D51: 1.2
A52: Receipt of licenses, including | B52: 12.8 | C52: 1.9 | D52: −
A53: due to new fields discovery*** | B53: − | C53: − | D53: −
A54: due to resolution of the Russian government, without tendering process | B54: − | C54: − | D54: −
A55: Return of licenses | B55: -0.1 | C55: − | D55: −
A56: Acquisition of assets | B56: − | C56: − | D56: −
A57: Disposal of assets | B57: − | C57: − | D57: -9.4
A58: Revaluation | B58: -1437.8 | C58: -24.8 | D58: 19.8
A59: Production (including losses) | B59: -469.9**** | C59: -12 | D59: -48.1
A60: Reserves as at 31 December 2017 | B60: 35355.4 | C60: 1595.6 | D60: 2045.3
A61: * Any changes in gas condensate reserves due to production are recognized as converted into stable gas condensate (C5+). The production volume of unstable gas condensate of Gazprom Group see in Production section.
A62: ** Under the law of the Russian Federation, the subsoil user does not have any vested right to develop reserves discovered in areas covered by exploration licenses or beyond the licensed areas. Such reserves shall be transferred to the Undistributed Subsoil Fund of the Russian Federation. Subsequently the subsoil user has a preference right to receive a license for their development.
A63: *** Including licenses received by Gazprom Group in previous years
A64: **** Excluding dissolved gas.
A66: Back to Contents

Sheet Discovered fields
A1: Hydrocarbon fields discovered by Gazprom Group in Russia, 2013-2017
A2: (excluding fields discovered by entities in which Gazprom has investments classified as joint operations)
A3: Discovered fields name | B3: Discovery year | D3: Discovered field type* | F3: Location
A4: Mangazeev | B4: 2013 | D4: O | F4: Tomsk Region
A5: Vostochno-Myginskoye | D5: O | F5: Tomsk Region
A6: Vostochno-Imbinskoye | B6: 2014 | D6: G | F6: Krasnoyarsk Territory
A7: Padinskoye | B7: 2015 | D7: GC | F7: Yamal-Nenets Autonomous Area
A8: Naryksko-Ostashkinskoye | D8: Coalbed metane | F8: Kemerovo Region
A9: Zapadno-Chatylkinskoye | B9: 2016 | D9: O | F9: Yamal-Nenets Autonomous Area
A10: Novosamarskoye | D10: O | F10: Orenburg Region
A11: Yuzhno-Lunskoye | B11: 2017 | D11: GC | F11: The Sea of Okhotsk continental shelf of Russia
A12: Salairskoye | D12: GC | F12: Krasnoyarsk Territory
A13: Alexander Zhagrin | D13: O | F13: Khanty-Mansi Autonomous Area – Yugra
A14: Novozarinskoye | D14: O | F14: Orenburg Region
A15: * As per the current Russian classification of Reserves and Resources of Oil and Flammable Gases: OGC — oil and gas condensate field; OG — oil and gas field; GC — gas and condensate field; G — gas field; O — oil field.
A17: Back to Contents

Sheet License areas
A1: Licenses
A2: License areas set out by federal districts of the Russian Federation, as at 31 December 2017, thousand square km
A3: License category* | B3: Ural FD | C3: Northwest FD | D3: South FD and North Caucasian FD | E3: Volga FD | F3: Siberiam FD | G3: Far Eastern FD | H3: Continental shelf of the Russian Federation
A4: Gazprom Group
A5: Licenses for prospecting, exploration and production of hydrocarbons (SEPL) | B5: 24.3 | C5: − | D5: 2.8 | E5: 2.6 | F5: 45.7 | G5: − | H5: 319.3
A6: Licenses for exploration and production of hydrocarbons (EPL) | B6: 68.3 | C6: 1.5 | D6: 5.4 | E6: 2.9 | F6: 21.4 | G6: 12.6 | H6: 12.3
A7: Licenses for geological survey (SL) | B7: 17.5 | C7: 0.1 | D7: 0.3 | E7: 2.5 | F7: 7.1 | G7: 0.9 | H7: −
A8: Total | B8: 110.1 | C8: 1.6 | D8: 8.5 | E8: 8 | F8: 74.2 | G8: 13.5 | H8: 331.6
A9: Entities investments in which are classified as joint operations
A10: Licenses for prospecting, exploration and production of hydrocarbons (SEPL) | B10: − | C10: − | D10: − | E10: − | F10: 18.9 | G10: − | H10: −
A11: Licenses for exploration and production of hydrocarbons (EPL) | B11: 4.1 | C11: − | D11: − | E11: − | F11: − | G11: − | H11: −
A12: Licenses for geological survey (SL) | B12: 0.1 | C12: − | D12: − | E12: − | F12: − | G12: − | H12: −
A13: Total | B13: 4.2 | C13: − | D13: − | E13: − | F13: 18.9 | G13: − | H13: −
A14: * License categories in accordance with Russian legislation.
A16: Back to Contents

Sheet Licenses
A1: Licenses for the main hydrocarbon fields in Russia, as at 31 December 2017
A2: Field name | B2: Year of production start | C2: Subsidiary — license holder | D2: Gazprom Group share*, % | E2: Field type** | F2: License category*** | G2: License expiration year****
A3: Gazprom Group
A4: Western Siberia (Ural FD)
A5: Urengoyskoye | B5: 1978 | C5: OOO Gazprom Dobycha Urengoy | D5: 1 | E5: OGC | F5: EPL | G5: 2038
A6: Severo-Urengoyskoye | B6: 1987 | E6: OGC | F6: EPL | G6: 2030
A7: Yen-Yakhinskoye | B7: 1985 | E7: OGC | F7: EPL | G7: 2038
A8: Pestsovoye | B8: 2004 | E8: OGC | F8: EPL | G8: 2041
A9: Yamburgskoye | B9: 1991 | C9: OOO Gazprom Dobycha Yamburg | D9: 1 | E9: OGC | F9: EPL | G9: 2054
A10: Zapolyarnoye | B10: 2001 | E10: OGC | F10: EPL | G10: 2114
A11: Severo-Parusovoye | B11: – | E11: OGC | F11: EPL | G11: 2027
A12: Medvezhye | B12: 1972 | C12: OOO Gazprom Dobycha Nadym | D12: 1 | E12: OGC | F12: EPL | G12: 2086
A13: Yamsoveiskoye | B13: 1997 | E13: OGC | F13: EPL | G13: 2039
A14: Ubileynoye | B14: 1992 | E14: OGC | F14: EPL | G14: 2063
A15: Kharasaveiskoye | B15: – | E15: GC | F15: EPL | G15: 2033
A16: Bovanenkovskoye | B16: 2012 | E16: OGC | F16: EPL | G16: 2042
A17: Novoportovskoye | B17: 2012***** | C17: OOO Gazpromneft-Yamal | D17: 1 | E17: OGC | F17: EPL | G17: 2150
A18: Komsomolskoye | B18: 1993 | C18: OOO Gazprom Dobycha Noyabrsk | D18: 1 | E18: OGC | F18: EPL | G18: 2049
A19: Yety-Purovskoye | B19: 2004 | E19: OGC | F19: EPL | G19: 2038
A20: Zapadno-Tarkosalynskoye | B20: 1996 | E20: OGC | F20: SEPL | G20: 2116
A21: Gubkinskoye | B21: 1999 | C21: ZAO Purgaz | D21: 0.51 | E21: OGC | F21: EPL | G21: 2040
A22: Uzhno-Russkoye | B22: 2007 | C22: OAO Severneftegazprom | D22: 50,001% (of ordinary shares) | E22: OGC | F22: EPL | G22: 2043
A23: Zapadno-Tambeyskoye | B23: – | C23: PJSC Gazprom | E23: OGC | F23: EPL | G23: 2028
A24: Kruzenshternskoye | B24: – | E24: GC | F24: EPL | G24: 2028
A25: Malyginskoye | B25: – | E25: GC | F25: EPL | G25: 2028
A26: Severo-Tambeyskoye | B26: – | E26: GC | F26: EPL | G26: 2028
A27: Tasiyskoye | B27: – | E27: GC | F27: EPL | G27: 2028
A28: Antypajutinskoye | B28: – | E28: G | F28: EPL | G28: 2028
A29: Tota-Yakhinskoe | B29: – | E29: G | F29: EPL | G29: 2028
A30: Tazovskoye | B30: – | C30: OOO Gazpromneft-Yamal | D30: 1 | E30: OGC | F30: SEPL | G30: 2025
A31: Sugmutskoye | B31: 1995 | C31: AO Gazpromneft- Noyabrskneftegaz | D31: 1 | E31: O | F31: EPL | G31: 2089
A32: Sutorminskoye | B32: 1982 | E32: OGC | F32: EPL | G32: 2110
A33: Muravlenkovskoye | B33: 1982 | E33: OG | F33: EPL | G33: 2072
A34: Sporyshevskoye | B34: 1996 | E34: O | F34: EPL | G34: 2083
A35: Southern part of Priobskoye | B35: 1999 | C35: OOO Gazpromneft-Khantos | D35: 1 | E35: O | F35: EPL | G35: 2038
A36: Vyngapurovskoye (Khanty-Mansi Autonomous Area) | B36: 1982 | C36: OOO Zapolyarneft | D36: 1 | E36: OGC | F36: EPL | G36: 2034
A37: Southern Russia (South FD)
A38: Astrakhanskoye | B38: 1986 | C38: OOO Gazprom Dobycha Astrakhan | D38: 1 | E38: GC | F38: EPL | G38: 2019
A39: Zapadno-Astrakhanskoye | B39: – | C39: PJSC Gazprom | E39: GC | F39: SEPL | G39: 2029
A40: South Ural region (Volga FD)
A41: Orenburgskoye | B41: 1974 | C41: OOO Gazprom Dobycha Orenburg | D41: 1 | E41: OGC | F41: EPL | G41: 2038
A42: Estern section of Orenburg OGC field | B42: 1994***** | C42: OOO Gazprom Neft Orenburg | D42: 100 % | E42: OGC | F42: EPL | G42: 2138
A43: Eastern Siberia and the Far East (Siberian and Far Eastern FDs)
A44: Chayandinskoye | B44: – | C44: PJSC Gazprom | E44: OGC | F44: EPL | G44: 2028
A45: Kovyktinskoye (including Khandinkaya square) | B45: – | E45: GC | F45: EPL | G45: 2037
A46: Tas-Yuryakhskoye | B46: – | E46: OGC | F46: EPL | G46: 2031
A47: Sobolokh-Nedzhelinskoye | B47: – | E47: GC | F47: EPL | G47: 2031
A48: Part of Srednetyungskoye | B48: – | E48: GC | F48: EPL | G48: 2031
A49: Verkhnevilyuchanskoye | B49: – | E49: OGC | F49: EPL | G49: 2031
A50: Chikanskoye | B50: – | E50: GC | F50: EPL | G50: 2028
A51: Sobinskoye | B51: – | C51: OOO Gazprom dobycha Krasnodar | D51: 1 | E51: OGC | F51: SEPL | G51: 2028
A52: Continental shelf of the Russian Federation
A53: Shtokmanovskoye (including western part) | B53: – | C53: PJSC Gazprom | E53: GC | F53: EPL | G53: 2043
A54: Kirinskoye | B54: 2013 | E54: GC | F54: EPL | G54: 2028
A55: Yuzhno-Kirinskoye | B55: – | E55: GC | F55: SEPL | G55: 2039
A56: Yuzhno-Lunskoye | B56: – | E56: GC | F56: SEPL | G56: 2039
A57: Mynginskoe | B57: – | E57: GC | F57: SEPL | G57: 2039
A58: Ledovoye | B58: – | E58: GC | F58: EPL | G58: 2033
A59: Rusanovskoye | B59: – | E59: GC | F59: SEPL | G59: 2043
A60: Ludlovskoye | B60: – | E60: G | F60: SEPL | G60: 2043
A61: Leningradskoye | B61: – | E61: GC | F61: SEPL | G61: 2043
A62: Kamennomysskoye-more | B62: – | C62: OOO Gazprom Dobycha Yamburg | D62: 1 | E62: G | F62: EPL | G62: 2057
A63: Severo-Kamennomysskoye | B63: – | E63: GC | F63: EPL | G63: 2076
A64: Semakovskoye | B64: – | E64: G | F64: EPL | G64: 2028
A65: Prirazlomnoye | B65: 2013 | C65: OOO Gazprom Neft shelf | D65: 1 | E65: O | F65: EPL | G65: 2043
A66: Dolginskoye | B66: – | E66: O | F66: EPL | G66: 2035
A67: Companies, investments in which are classified as joint operations
A68: Western Siberia (Ural FD)
A69: Zapadno-Salymskoye | B69: 2004 | C69: Salym Petroleum Development N.V. | D69: 0.5 | E69: O | F69: EPL | G69: 2130
A70: Sovetskoye (Khanty- Mansi Autonomous Area) | B70: 1966 | C70: AO Tomskneft VNC | D70: 0.5 | E70: O | F70: EPL | G70: 2145
A71: Eastern Siberia and the Far East (Siberian and Far Eastern FDs)
A72: Krapivinskoye | B72: 1984 | C72: AO Tomskneft VNC | D72: 0.5 | E72: O | F72: EPL | G72: 2159
A73: Sovetskoye (the Tomsk Region) | B73: 1966 | E73: O | F73: EPL | G73: 2145
A74: Pervomayskoye (the Tomsk Region) | B74: 1981 | E74: O | F74: EPL | G74: 2105
A75: Luginetskoye | B75: 1982 | E75: OGC | F75: EPL | G75: 2098
A76: Associated and jointly controlled companies
A77: Western Siberia (Ural FD)
A78: Vostochno-Messoyakhskoe | B78: 2013***** | C78: AO Messoyakhaneftegaz | D78: 0.5 | E78: OGC | F78: SEPL | G78: 2140
A79: Zapadno-Messoyakhskoe | B79: – | E79: OG | F79: SEPL | G79: 2020
A80: Eastern Siberia and the Far East (Siberian and Far Eastern FDs)
A81: Kuymbinskoye | B81: 2010***** | C81: OOO Slavneft-Krasnoyarskneftegaz | D81: 0.5 | E81: OGC | F81: SEPL | G81: 2171
A82: Piltun-Astokhskoe | B82: 1999 | C82: Sakhalin Energy Investment Company Ltd. | D82: 50% + 1 share | E82: OGC | F82: SEPL | G82: 2021
A83: Lunskoe | B83: 2009 | E83: OGC | F83: SEPL | G83: 2021
A84: * The aggregate share of the Group in the authorized capital of the investment objects, as reflected in the consolidated financial statements of Gazprom Group under IFRS.
A85: ** As per the current Russian classification of Reserves and Resources of Oil and Flammable Gases: OGC — oil and gas condensate field; OG — oil and gas field; GC — gas and condensate field; G — gas field; O — oil field.
A86: *** Russian legislation provides for several types of licenses applicable to the study, exploration and production of natural resources, including: licenses for geological survey (SL); licenses for exploration and production of hydrocarbons (EPL); and licenses for geological survey, exploration and production of hydrocarbons (SEPL). Abbreviations are stated according to the classification determined by the Russian legislation.
A87: **** While license holders of Gazprom Group meet the main terms and conditions of license agreements, they have a right to prolong current licenses to complete exploration and development of fields. Gazprom plans to prolong licenses for the period till the completion of profitable development of fields.
A88: ***** Pilot production.
A90: Back to Contents

Sheet Production
A1: Production
A2: Hydrocarbon production of Gazprom Group in Russia
A3: (including share in production of entities, investments in which are classified as joint operations)
A4: Metric units
B5: For the year ended 31 December
B6: 2005* | C6: 2006* | D6: 2007* | E6: 2008* | F6: 2009* | G6: 2010* | H6: 2011* | I6: 2012 | J6: 2013 | K6: 2014 | L6: 2015 | M6: 2016 | N6: 2017
A7: Natural and associated gas, bcm | B7: 555 | C7: 555.95 | D7: 548.55 | E7: 549.73 | F7: 461.52 | G7: 508.59 | H7: 513.17 | I7: 487.99 | J7: 488.39 | K7: 444.9 | L7: 419.52 | M7: 420.13 | N7: 472.05
A8: Gas condensate, mm tonnnes | B8: 11.5 | C8: 11.37 | D8: 11.27 | E8: 10.93 | F8: 10.07 | G8: 11.29 | H8: 12.07 | I8: 12.85 | J8: 14.66 | K8: 14.49 | L8: 15.34 | M8: 15.85 | N8: 15.94
A9: Crude oil, mm tonnes | B9: 9.49 | C9: 34.02 | D9: 33.98 | E9: 32.05 | F9: 31.62 | G9: 32.01 | H9: 32.28 | I9: 42.26 | J9: 42.41 | K9: 43.53 | L9: 44.04 | M9: 47.15 | N9: 48.63
A10: * Excluding share of Gazprom Group in production of entities, investments in which are classified as joint operations.
A12: Oil equivalent
B13: For the year ended 31 December
B14: 2005* | C14: 2006* | D14: 2007* | E14: 2008* | F14: 2009* | G14: 2010* | H14: 2011* | I14: 2012 | J14: 2013 | K14: 2014 | L14: 2015 | M14: 2016 | N14: 2017
A15: Natural and associated gas, mm boe | B15: =B7*6.49 -> 3601.95 | C15: 3608.1155 | D15: 3560.0895 | E15: 3567.7477 | F15: 2995.2648 | G15: 3300.7491 | H15: 3330.4733 | I15: 3167.06 | J15: 3169.65 | K15: 2887.4 | L15: 2722.68 | M15: 2726.64 | N15: 3063.6
A16: Gas condensate, mm boe | B16: 94.07 | C16: 93.01 | D16: 92.19 | E16: 89.41 | F16: 82.37 | G16: 92.35 | H16: 98.73 | I16: 105.11 | J16: 119.92 | K16: 118.53 | L16: 125.48 | M16: 129.65 | N16: 130.39
A17: Crude oil, mm boe | B17: 69.56 | C17: 249.37 | D17: 249.07 | E17: 234.93 | F17: 231.77 | G17: 234.63 | H17: 236.61 | I17: 309.77 | J17: 310.87 | K17: 319.07 | L17: 322.81 | M17: 345.61 | N17: 356.46
A18: Total, mm boe | B18: =B15+B16+B17 -> 3765.58 | C18: 3950.4955 | D18: 3901.3495 | E18: 3892.0877 | F18: 3309.4048 | G18: 3627.7291 | H18: 3665.8133 | I18: 3581.94 | J18: 3600.44 | K18: 3325 | L18: 3170.97 | M18: 3201.91 | N18: 3550.45
A19: * Excluding share of Gazprom Group in production of entities, investments in which are classified as joint operations.
A20: Note. For management accounting purposes, Gazprom Group measures hydrocarbon reserves and production in metric units. In this Factbook, gas reserves are converted from metric units to barrels of oil equivalent at a ratio of 1,000 cubic metres to 6.49 boe.
A22: Daily average hydrocarbon production of Gazprom Group in Russia
A23: (including share in production of entities, investments in which are classified as joint operations)
B24: For the year ended 31 December
B25: 2005* | C25: 2006* | D25: 2007* | E25: 2008* | F25: 2009* | G25: 2010* | H25: 2011* | I25: 2012 | J25: 2013 | K25: 2014 | L25: 2015 | M25: 2016 | N25: 2017
A26: Natural and associated gas, mmcm / day | B26: 1520.55 | C26: 1523.15 | D26: 1502.88 | E26: 1501.99 | F26: 1264.4 | G26: 1393.4 | H26: 1405.9 | I26: 1333.3 | J26: 1338 | K26: 1218.9 | L26: 1149.4 | M26: 1147.9 | N26: 1293.3
A27: Gas condensate, thousand tonnes / day | B27: 31.51 | C27: 31.15 | D27: 30.88 | E27: 29.86 | F27: 27.6 | G27: 30.9 | H27: 33.1 | I27: 35.1 | J27: 40.2 | K27: 39.7 | L27: 42 | M27: 43.3 | N27: 43.7
A28: Crude oil, thousand tonnes / day | B28: 26 | C28: 93.21 | D28: 93.1 | E28: 87.57 | F28: 86.6 | G28: 87.7 | H28: 88.4 | I28: 115.5 | J28: 116.2 | K28: 119.3 | L28: 120.7 | M28: 128.8 | N28: 133.2
A29: * Excluding share of Gazprom Group in production of entities, investments in which are classified as joint operations.
A31: Gazprom Group’s hydrocarbon production in Russia
A32: (including share in production of entities, investments in which are classified as joint operations)
B33: For the year ended 31 December
B34: 2005* | C34: 2006* | D34: 2007* | E34: 2008* | F34: 2009* | G34: 2010* | H34: 2011* | I34: 2012 | J34: 2013 | K34: 2014 | L34: 2015 | M34: 2016 | N34: 2017
A35: Natural and associated gas, bcm
A36: PJSC Gazprom and its major subsidiaries** | B36: 539.35 | C36: 538.84 | D36: 530.51 | E36: 517.63 | F36: 425.02 | G36: 465.14 | H36: 464.81 | I36: 437.9 | J36: 436.29 | K36: 393.73 | L36: 368.2 | M36: 368.6 | N36: 419.72
A37: PAO Gazprom Neft and its subsidiaries | B37: 0.55 | C37: 2.07 | D37: 1.77 | E37: 2.16 | F37: 2.08 | G37: 2.95 | H37: 7.33 | I37: 8.73 | J37: 11.36 | K37: 11.86 | L37: 12.53 | M37: 13.64 | N37: 15.4
A38: ZAO Purgaz | B38: 15.1 | C38: 15.04 | D38: 15.02 | E38: 14.87 | F38: 11.84 | G38: 15.14 | H38: 15.37 | I38: 15.04 | J38: 14.62 | K38: 13.25 | L38: 12.7 | M38: 11.74 | N38: 10.82
A39: OAO Severneftegazprom | B39: – | C39: – | D39: 1.25 | E39: 15.07 | F39: 22.58 | G39: 25.36 | H39: 25.66 | I39: 25.35 | J39: 25.12 | K39: 25.04 | L39: 25.05 | M39: 25.12 | N39: 25.04
A40: Total (excluding share in production of entities, investments in which are classified as joint operations) | B40: 555 | C40: 555.95 | D40: 548.55 | E40: 549.73 | F40: 461.52 | G40: 508.59 | H40: 513.17 | I40: 487.02 | J40: 487.39 | K40: 443.88 | L40: 418.48 | M40: 419.1 | N40: 470.98
A41: Entities, investments in which are classified as joint operations (attributable to the share of Gazprom Group) | B41: x | C41: x | D41: x | E41: x | F41: x | G41: x | H41: x | I41: 0.97 | J41: 1 | K41: 1.02 | L41: 1.04 | M41: 1.03 | N41: 1.07
A42: Total (including share in production of entities, investments in which are classified as joint operations) | B42: x | C42: x | D42: x | E42: x | F42: x | G42: x | H42: x | I42: 487.99 | J42: 488.39 | K42: 444.9 | L42: 419.52 | M42: 420.13 | N42: 472, 05
A43: Gas condensate, mm tonnes
A44: PJSC Gazprom and its major subsidiaries** | B44: 11.5 | C44: 11.37 | D44: 11.27 | E44: 10.93 | F44: 10.07 | G44: 11.29 | H44: 12.07 | I44: 12.84 | J44: 14.65 | K44: 14.47 | L44: 15.31 | M44: 15.83 | N44: 15.92
A45: PAO Gazprom Neft and its subsidiaries | B45: – | C45: – | D45: – | E45: – | F45: – | G45: – | H45: – | I45: 0.01 | J45: 0.01 | K45: 0.02 | L45: 0.03 | M45: 0.02 | N45: 0.02
A46: Total | B46: 11.5 | C46: 11.37 | D46: 11.27 | E46: 10.93 | F46: 10.07 | G46: 11.29 | H46: 12.07 | I46: 12.85 | J46: 14.66 | K46: 14.49 | L46: 15.34 | M46: 15.85 | N46: 15.94
A47: Crude oil, mm tonnes
A48: PJSC Gazprom and its major subsidiaries** | B48: 1.29 | C48: 1.3 | D48: 1.32 | E48: 1.27 | F48: 1.55 | G48: 1.85 | H48: 1.9 | I48: 1.7 | J48: 1.69 | K48: 1.73 | L48: 1.74 | M48: 1.55 | N48: 1.5
A49: PAO Gazprom Neft and its subsidiaries | B49: 8.2 | C49: 32.72 | D49: 32.66 | E49: 30.78 | F49: 30.07 | G49: 30.16 | H49: 30.38 | I49: 31.63 | J49: 32.15 | K49: 33.56 | L49: 34.3 | M49: 37.74 | N49: 39.48
A50: Total (excluding share in production of entities, investments in which are classified as joint operations) | B50: 9.49 | C50: 34.02 | D50: 33.98 | E50: 32.05 | F50: 31.62 | G50: 32.01 | H50: 32.28 | I50: 33.33 | J50: 33.84 | K50: 35.29 | L50: 36.04 | M50: 39.29 | N50: 40.98
A51: Entities, investments in which are classified as joint operations (attributable to the share of Gazprom Group) | B51: x | C51: x | D51: x | E51: x | F51: x | G51: x | H51: x | I51: 8.93 | J51: 8.57 | K51: 8.24 | L51: 8 | M51: 7.86 | N51: 7.65
A52: Total (including share in production of entities, investments in which are classified as joint operations) | B52: x | C52: x | D52: x | E52: x | F52: x | G52: x | H52: x | I52: 42.26 | J52: 42.41 | K52: 43.53 | L52: 44.04 | M52: 47.15 | N52: 48.63
A53: * Excluding share of Gazprom Group in production of entities, investments in which are classified as joint operations.
A54: ** For the list of major subsidiaries, see Glossary.
A56: Hydrocarbon production of Gazprom Group in Russia set out by Federal Districts
A57: (including share in production of entities, investments in which are classified as joint operations)
B58: For the year ended 31 December
B59: 2005* | C59: 2006* | D59: 2007* | E59: 2008* | F59: 2009* | G59: 2010* | H59: 2011* | I59: 2012 | J59: 2013 | K59: 2014 | L59: 2015 | M59: 2016 | N59: 2017
A60: Natural and associated gas, bcm
A61: Ural FD | B61: 516.39 | C61: 517.88 | D61: 510.57 | E61: 512.17 | F61: 427.44 | G61: 471.68 | H61: 476.53 | I61: 450.96 | J61: 452.34 | K61: 409.96 | L61: 385.18 | M61: 385.46 | N61: 437.56
A62: North-Western FD | B62: 2.82 | C62: 2.75 | D62: 2.75 | E62: 2.64 | F62: 2.54 | G62: 2.52 | H62: 2.4 | I62: 2.33 | J62: 2.38 | K62: 2.25 | L62: 2.14 | M62: 2.06 | N62: 2.02
A63: South FD and Nortern Caucasian FD | B63: 13.55 | C63: 13.36 | D63: 13.37 | E63: 13.23 | F63: 10.76 | G63: 13.01 | H63: 13.21 | I63: 12.89 | J63: 11.86 | K63: 11.24 | L63: 11.15 | M63: 11.28 | N63: 11.58
A64: Volga FD | B64: 18.72 | C64: 18.64 | D64: 18.7 | E64: 18.71 | F64: 17.85 | G64: 18.59 | H64: 17.94 | I64: 17.52 | J64: 17.27 | K64: 16.73 | L64: 16.22 | M64: 15.65 | N64: 14.95
A65: Siberian FD | B65: 3.52 | C65: 3.32 | D65: 3.16 | E65: 2.98 | F65: 2.93 | G65: 2.79 | H65: 3.09 | I65: 4.29 | J65: 4.43 | K65: 4.23 | L65: 3.82 | M65: 4.55 | N65: 4.88
A66: Far Eastern FD | B66: – | C66: – | D66: – | E66: – | F66: – | G66: – | H66: – | I66: – | J66: 0.2 | K66: 0.39 | L66: 0.4 | M66: 0.41 | N66: 0.43
A67: Continental shelf of the Russian Federation | B67: – | C67: – | D67: – | E67: – | F67: – | G67: – | H67: – | I67: – | J67: 0.01 | K67: 0.1 | L67: 0.61 | M67: 0.72 | N67: 0.63
A68: Total | B68: 555 | C68: 555.95 | D68: 548.55 | E68: 549.73 | F68: 461.52 | G68: 508.59 | H68: 513.17 | I68: 487.99 | J68: 488.39 | K68: 444.9 | L68: 419.52 | M68: 420.13 | N68: 472.05
A69: Gas condensate, mm tonnes
A70: Ural FD | B70: 6.38 | C70: 6.29 | D70: 6.22 | E70: 5.95 | F70: 6.04 | G70: 6.34 | H70: 7.1 | I70: 8.04 | J70: 10.18 | K70: 10.3 | L70: 11.14 | M70: 11.59 | N70: 11.51
A71: North-Western FD | B71: 0.25 | C71: 0.23 | D71: 0.21 | E71: 0.19 | F71: 0.17 | G71: 0.15 | H71: 0.14 | I71: 0.13 | J71: 0.14 | K71: 0.13 | L71: 0.12 | M71: 0.12 | N71: 0.12
A72: South FD and Nortern Caucasian FD | B72: 4.24 | C72: 4.25 | D72: 4.27 | E72: 4.26 | F72: 3.35 | G72: 4.14 | H72: 4.22 | I72: 4.13 | J72: 3.78 | K72: 3.56 | L72: 3.51 | M72: 3.56 | N72: 3.68
A73: Volga FD | B73: 0.27 | C73: 0.27 | D73: 0.28 | E73: 0.27 | F73: 0.26 | G73: 0.27 | H73: 0.25 | I73: 0.22 | J73: 0.19 | K73: 0.16 | L73: 0.15 | M73: 0.14 | N73: 0.12
A74: Siberian FD | B74: 0.36 | C74: 0.33 | D74: 0.29 | E74: 0.26 | F74: 0.25 | G74: 0.39 | H74: 0.36 | I74: 0.33 | J74: 0.37 | K74: 0.31 | L74: 0.31 | M74: 0.31 | N74: 0.39
A75: Far Eastern FD | B75: – | C75: – | D75: – | E75: – | F75: – | G75: – | H75: – | I75: – | J75: 0 | K75: 0.01 | L75: 0.01 | M75: 0.01 | N75: 0.01
A76: Continental shelf of the Russian Federation | B76: – | C76: – | D76: – | E76: – | F76: – | G76: – | H76: – | I76: – | J76: – | K76: 0.02 | L76: 0.1 | M76: 0.12 | N76: 0.11
A77: Total | B77: 11.5 | C77: 11.37 | D77: 11.27 | E77: 10.93 | F77: 10.07 | G77: 11.29 | H77: 12.07 | I77: 12.85 | J77: 14.66 | K77: 14.49 | L77: 15.34 | M77: 15.85 | N77: 15.94
A78: Crude oil, mm tonnes
A79: Ural FD | B79: 8.43 | C79: 31.92 | D79: 31.74 | E79: 29.6 | F79: 28.91 | G79: 28.73 | H79: 28.66 | I79: 32.95 | J79: 32.7 | K79: 32.83 | L79: 32.39 | M79: 34.45 | N79: 35.71
A80: North-Western FD | B80: 0.09 | C80: 0.07 | D80: 0.08 | E80: 0.07 | F80: 0.06 | G80: 0.06 | H80: 0.05 | I80: 0.04 | J80: 0.05 | K80: 0.03 | L80: 0.04 | M80: 0.03 | N80: 0.02
A81: South FD and Nortern Caucasian FD | B81: 0.12 | C81: 0.11 | D81: 0.08 | E81: 0.08 | F81: 0.12 | G81: 0.16 | H81: 0.16 | I81: 0.16 | J81: 0.14 | K81: 0.11 | L81: 0.09 | M81: 0.09 | N81: 0.09
A82: Volga FD | B82: 0.56 | C82: 0.6 | D82: 0.64 | E82: 0.68 | F82: 0.7 | G82: 0.69 | H82: 0.75 | I82: 1.23 | J82: 1.77 | K82: 2.46 | L82: 2.76 | M82: 2.85 | N82: 2.85
A83: Siberian FD | B83: 0.29 | C83: 1.32 | D83: 1.44 | E83: 1.62 | F83: 1.83 | G83: 2.37 | H83: 2.66 | I83: 7.88 | J83: 7.75 | K83: 7.84 | L83: 7.87 | M83: 7.58 | N83: 7.32
A84: Far Eastern FD | B84: – | C84: – | D84: – | E84: – | F84: – | G84: – | H84: – | I84: – | J84: – | K84: – | L84: 0 | M84: – | N84: 0
A85: Continental shelf of the Russian Federation | B85: – | C85: – | D85: – | E85: – | F85: – | G85: – | H85: – | I85: – | J85: – | K85: 0.26 | L85: 0.89 | M85: 2.15 | N85: 2.64
A86: Total | B86: 9.49 | C86: 34.02 | D86: 33.98 | E86: 32.05 | F86: 31.62 | G86: 32.01 | H86: 32.28 | I86: 42.26 | J86: 42.41 | K86: 43.53 | L86: 44.04 | M86: 47.15 | N86: 48.63
A87: * Excluding share of Gazprom Group in production of entities, investments in which are classified as joint operations.
A89: Useful life of APG by Gazprom Group in Russia
A90: (including share in production of entities, investments in which are classified as joint operations)
B91: For the year ended 31 December
C92: 2006* | D92: 2007* | E92: 2008* | F92: 2009* | G92: 2010* | H92: 2011* | I92: 2012* | J92: 2013 | K92: 2014 | L92: 2015 | M92: 2016 | N92: 2017
A93: APG usage, bcm
A94: PJSC Gazprom and its major subsidiaries** | C94: 1.73 | D94: 1.69 | E94: 1.62 | F94: 1.68 | G94: 1.83 | H94: 2.05 | I94: 1.48 | J94: 1.27 | K94: 1.42 | L94: 1.87 | M94: 1.79 | N94: 1.64
A95: PAO Gazprom Neft and its subsidiaries | C95: 2.04 | D95: 1.75 | E95: 2.14 | F95: 2.06 | G95: 2.45 | H95: 2.66 | I95: 4.18 | J95: 5.39 | K95: 6.13 | L95: 6.51 | M95: 7.63 | N95: 8.71
A96: Total, excluding share in production volumes of entities in which Gazprom has investments classified as joint operations | C96: 3.77 | D96: 3.44 | E96: 3.76 | F96: 3.74 | G96: 4.28 | H96: 4.71 | I96: 5.66 | J96: 6.66 | K96: 7.55 | L96: 8.38 | M96: 9.42 | N96: 10.35
A97: Entities in which Gazprom has investments classified as joint operations (share attributable to Gazprom Group) | J97: 0.99 | K97: 1.02 | L97: 1.05 | M97: 1.03 | N97: 1.07
A98: Total, including share in production volumes of entities in which Gazprom has investments classified as joint operations | J98: 7.65 | K98: 8.58 | L98: 9.43 | M98: 10.45 | N98: 11.42
A99: Level of useful life of APG, %
A100: PJSC Gazprom and its major subsidiaries** | C100: 81.2 | D100: 82.8 | E100: 83.3 | F100: 81.8 | G100: 81.6 | H100: 87 | I100: 83.2 | J100: 90.9 | K100: 93.5 | L100: 95.6 | M100: 97.8 | N100: 98.4
A101: PAO Gazprom Neft and its subsidiaries | C101: 45 | D101: 35.7 | E101: 46.8 | F101: 48.1 | G101: 55.3 | H101: 58.8 | I101: 65.7 | J101: 79.5 | K101: 80.5 | L101: 79.6 | M101: 79.2 | N101: 76.2
A102: Total, excluding share in production volumes of entities in which Gazprom has investments classified as joint operations | C102: 56.6 | D102: 49.7 | E102: 57.7 | F102: 59.1 | G102: 64.1 | H102: 68.4 | I102: 69.2 | J102: 81.4 | K102: 82.7 | L102: 82.7 | M102: 82.2 | N102: 79
A103: Entities in which Gazprom has investments classified as joint operations (share attributable to Gazprom Group) | J103: 87.3 | K103: 90 | L103: 89.9 | M103: 87.2 | N103: 88.9
A104: Total, including share in production volumes of entities in which Gazprom has investments classified as joint operations | J104: 82.2 | K104: 83.5 | L104: 83.5 | M104: 82.7 | N104: 79.8
A105: * Excluding share of Gazprom Group in production of entities, investments in which are classified as joint operations.
A106: ** For the list of major subsidiaries, see Glossary.
A108: Back to Contents

Sheet Production of the assoc. and JV
A1: Hydrocarbon production of the associated and jointly controlled companies in Russia attributable to the share of Gazprom Group
A2: Metric units
B3: For the year ended 31 December
B4: 2007* | C4: 2008* | D4: 2009* | E4: 2010* | F4: 2011* | G4: 2012 | H4: 2013 | I4: 2014 | J4: 2015 | K4: 2016 | L4: 2017
A5: Natural and associated gas, bcm | B5: 8.5 | C5: 11 | D5: 13.6 | E5: 17.6 | F5: 11.3 | G5: 11.9 | H5: 13 | I5: 18.2 | J5: 25.5 | K5: 27.2 | L5: 27
A6: Gas condensate, mm tonnnes | B6: 0.7 | C6: 0.7 | D6: 1.2 | E6: 1.6 | F6: 1 | G6: 1.1 | H6: 1.3 | I6: 2.3 | J6: 4.7 | K6: 5.2 | L6: 5
A7: Crude oil, mm tonnes | B7: 11.3 | C7: 16.3 | D7: 19.2 | E7: 20.7 | F7: 20.5 | G7: 10.8 | H7: 10.2 | I7: 10 | J7: 9.6 | K7: 9.9 | L7: 10.9
A8: * Including share of Gazprom Group in production of entities, investments in which are classified as joint operations.
A10: Oil equivalent
B11: For the year ended 31 December
B12: 2007* | C12: 2008* | D12: 2009* | E12: 2010* | F12: 2011* | G12: 2012 | H12: 2013 | I12: 2014 | J12: 2015 | K12: 2016 | L12: 2017
A13: Natural and associated gas, mm boe | B13: =B5*6.49 -> 55.165 | C13: 71.39 | D13: 88.264 | E13: 114.224 | F13: 73.337 | G13: 77.231 | H13: 84.37 | I13: 118.118 | J13: 165.495 | K13: =K5*6.49 -> 176.528 | L13: 175.2
A14: Gas condensate, mm boe | B14: 5.7 | C14: 5.7 | D14: 9.8 | E14: 13.1 | F14: 8.2 | G14: 9 | H14: 10.6 | I14: 18.8 | J14: 38.4 | K14: =K6*8.18 -> 42.536 | L14: 40.9
A15: Crude oil, mm boe | B15: 82.8 | C15: 119.5 | D15: 140.7 | E15: 151.7 | F15: 150.3 | G15: 79.2 | H15: 74.8 | I15: 73.3 | J15: 70.4 | K15: =K7*7.33 -> 72.567 | L15: 79.9
A16: Total, mm boe | B16: =B13+B14+B15 -> 143.665 | C16: 196.59 | D16: 238.764 | E16: 279.024 | F16: 231.837 | G16: 165.431 | H16: 169.77 | I16: 210.218 | J16: 274.295 | K16: =K13+K14+K15 -> 291.631 | L16: 296
A17: * Including share of Gazprom Group in production of entities, investments in which are classified as joint operations.
A18: Note. For management accounting purposes, Gazprom Group measures hydrocarbon reserves and production in metric units. In this Factbook, gas reserves are converted from metric units to barrels of oil equivalent at a ratio of 1,000 cubic metres to 6.49 boe.
A20: Back to Contents

Sheet Explor. and drill. in Russia
A1: Geological Exploration, Production Drilling and Production Capacity
A2: Key figures of Gazprom Group’s geological exploration activities
A3: (excluding entities, investments in which are classified as joint operations)
B4: For the year ended 31 December
B5: 2005 | C5: 2006 | D5: 2007 | E5: 2008 | F5: 2009 | G5: 2010 | H5: 2011 | I5: 2012 | J5: 2013 | K5: 2014 | L5: 2015 | M5: 2016 | N5: 2017
A6: Exploration drilling, thousand m | B6: 136.3 | C6: 177.7 | D6: 207.6 | E6: 284.9 | F6: 163.7 | G6: 204.9 | H6: 157.7 | I6: 126.4 | J6: 146.4 | K6: 165.4 | L6: 143.6 | M6: 111.6 | N6: 85.9 | P6: 126.4 | Q6: 146.4 | R6: 165.4 | S6: 143.6 | T6: 111.6
A7: Completed exploration wells, units | B7: 44 | C7: 62 | D7: 39 | E7: 80 | F7: 75 | G7: 82 | H7: 60 | I7: 54 | J7: 53 | K7: 41 | L7: 43 | M7: 40 | N7: 36 | P7: 54 | Q7: 53 | R7: 41 | S7: 43 | T7: 40
A8: including productive wells | B8: 35 | C8: 50 | D8: 20 | E8: 50 | F8: 43 | G8: 64 | H8: 45 | I8: 46 | J8: 37 | K8: 31 | L8: 38 | M8: 34 | N8: 31 | P8: 46 | Q8: 37 | R8: 31 | S8: 38 | T8: 34
A9: Seismic exploration 2D, thousand linear km | B9: 9.8 | C9: 9.2 | D9: 6.4 | E9: 12.4 | F9: 14.7 | G9: 18.5 | H9: 2.8 | I9: 1.9 | J9: 1.4 | K9: 6.6 | L9: 0.3 | M9: 1.1 | N9: – | P9: 1.9 | Q9: 1.4 | R9: 6.6 | S9: 0.3 | T9: 1.1
A10: Seismic exploration 3D, thousand square km | B10: 3.2 | C10: 7.9 | D10: 5.7 | E10: 6.6 | F10: 9.5 | G10: 10.8 | H10: 8.7 | I10: 8.4 | J10: 13.3 | K10: 12.6 | L10: 20 | M10: 20.6 | N10: 18.7 | P10: 8.4 | Q10: 13.3 | R10: 12.6 | S10: 20 | T10: 20.6
A11: Reserves growth due to geological exploration, mm boe | B11: 3706.2 | C11: 3961.4 | D11: 3712.7 | E11: 3889.2 | F11: 3498 | G11: 4100 | H11: 4978.8 | I11: 3955.5 | J11: 4183.5 | K11: 5942.2 | L11: 3835.1 | M11: 3404 | N11: 6341.5 | P11: 3955.5 | Q11: 4183.5 | R11: 5942.2 | S11: 3835.1 | T11: 3404
A12: Drilling efficiency, thousand boe / m | B12: 27.1 | C12: 22.1 | D12: 17.9 | E12: 13.7 | F12: 21.4 | G12: 20 | H12: 31.2 | I12: 31.3 | J12: 28.6 | K12: 35.9 | L12: 26.7 | M12: 30.5 | N12: 73.8 | P12: 31293.5 | Q12: 28575.8 | R12: 35926.2 | S12: 26706.8 | T12: 30501.8
A14: Key figures of geological exploration activities of entities, investments in which are classified as joint operations
B15: For the year ended 31 December
B16: 2005 | C16: 2006 | D16: 2007 | E16: 2008 | F16: 2009 | G16: 2010 | H16: 2011 | I16: 2012 | J16: 2013 | K16: 2014 | L16: 2015 | M16: 2016 | N16: 2017
A17: Exploration drilling, thousand m | B17: x | C17: x | D17: x | E17: x | F17: x | G17: x | H17: x | I17: 14 | J17: 11.6 | K17: 13.1 | L17: 3.2 | M17: 7.4 | N17: 12.8 | P17: 14 | Q17: 11.6 | R17: 13.1 | S17: 3.2 | T17: 7.4
A18: Completed exploration wells, units | B18: x | C18: x | D18: x | E18: x | F18: x | G18: x | H18: x | I18: 5 | J18: 5 | K18: 4 | L18: 1 | M18: 2 | N18: 4 | P18: 5 | Q18: 5 | R18: 4 | S18: 1 | T18: 2
A19: including productive wells | B19: x | C19: x | D19: x | E19: x | F19: x | G19: x | H19: x | I19: 4 | J19: 3 | K19: 3 | L19: 1 | M19: 1 | N19: 4 | P19: 4 | Q19: 3 | R19: 3 | S19: 1 | T19: 1
A20: Seismic exploration 2D, thousand linear km | B20: x | C20: x | D20: x | E20: x | F20: x | G20: x | H20: x | I20: 481 | J20: – | K20: – | L20: – | M20: − | N20: – | P20: 481 | Q20: – | R20: – | S20: – | T20: −
A21: Seismic exploration 3D, thousand square km | B21: x | C21: x | D21: x | E21: x | F21: x | G21: x | H21: x | I21: 1085 | J21: 858 | K21: 494 | L21: 459 | M21: 130 | N21: 200 | P21: 1085 | Q21: 858 | R21: 494 | S21: 459 | T21: 130
A23: Gazprom Group’s production drilling
A24: (excluding entities, investments in which are classified as joint operations)
B25: For the year ended 31 December
B26: 2005 | C26: 2006 | D26: 2007 | E26: 2008 | F26: 2009 | G26: 2010 | H26: 2011 | I26: 2012 | J26: 2013 | K26: 2014 | L26: 2015 | M26: 2016 | N26: 2017
A27: Production wells, completed construction, units
A28: natural gas | B28: 248 | C28: 156 | D28: 204 | E28: 143 | F28: 151 | G28: 118 | H28: 223 | I28: 212 | J28: 93 | K28: 38 | L28: 73 | M28: 64 | N28: 116
A29: crude oil | B29: 15 | C29: 441 | D29: 546 | E29: 629 | F29: 702 | G29: 775 | H29: 719 | I29: 724 | J29: 788 | K29: 832 | L29: 802 | M29: 725 | N29: 660
A30: at UGSFs | B30: 36 | C30: 41 | D30: 45 | E30: 8 | F30: 14 | G30: 16 | H30: 17 | I30: 17 | J30: 43 | K30: 22 | L30: 27 | M30: 13 | N30: 4
A31: Total | B31: 299 | C31: 638 | D31: 795 | E31: 780 | F31: 867 | G31: 909 | H31: 959 | I31: 953 | J31: 924 | K31: 892 | L31: 902 | M31: 802 | N31: 780
A32: Production wells drilled, thousand m
A33: natural gas | B33: 327.4 | C33: 267.1 | D33: 314 | E33: 375.7 | F33: 358.2 | G33: 441.5 | H33: 476.8 | I33: 367.7 | J33: 239.7 | K33: 125.6 | L33: 153.2 | M33: 227.2 | N33: 240.8
A34: crude oil | B34: 38.2 | C34: 1468.9 | D34: 1740.7 | E34: 2080.6 | F34: 2286.7 | G34: 2602.2 | H34: 2288.1 | I34: 2566.6 | J34: 3002.1 | K34: 2948.5 | L34: 3163 | M34: 2735.8 | N34: 2 559,5
A35: at UGSFs | B35: 31.6 | C35: 30.1 | D35: 37.8 | E35: 17.6 | F35: 11.9 | G35: 20.3 | H35: 22.9 | I35: 24.2 | J35: 36.7 | K35: 27.6 | L35: 47.5 | M35: 23.7 | N35: 13.6
A36: Total | B36: 397.2 | C36: 1766.1 | D36: 2092.5 | E36: 2473.9 | F36: 2656.8 | G36: 3064 | H36: 2787.8 | I36: 2958.5 | J36: 3278.5 | K36: 3101.7 | L36: 3363.7 | M36: 2 986,7 | N36: 2 813,9
A38: Production drilling of entities, investments in which are classified as joint operations
B39: For the year ended 31 December
B40: 2005 | C40: 2006 | D40: 2007 | E40: 2008 | F40: 2009 | G40: 2010 | H40: 2011 | I40: 2012 | J40: 2013 | K40: 2014 | L40: 2015 | M40: 2016 | N40: 2017
A41: Oil production wells, completed construction, units | B41: x | C41: x | D41: x | E41: x | F41: x | G41: x | H41: x | I41: 243 | J41: 211 | K41: 188 | L41: 206 | M41: 231 | N41: 236
A42: Oil producing wells drilled, thousand m | B42: x | C42: x | D42: x | E42: x | F42: x | G42: x | H42: x | I42: 827 | J42: 697 | K42: 694 | L42: 789 | M42: 785 | N42: 784
A44: Gazprom Group’s production capacity
A45: (excluding entities, investments in which are classified as joint operations)
B46: As at 31 December
B47: 2005 | C47: 2006 | D47: 2007 | E47: 2008 | F47: 2009 | G47: 2010 | H47: 2011 | I47: 2012 | J47: 2013 | K47: 2014 | L47: 2015 | M47: 2016 | N47: 2017
A48: Fields in operation, units
A49: Commercial production | I49: 118 | J49: 122 | K49: 126 | L49: 135 | M49: 136 | N49: 136
A50: Pilot production | I50: 6 | J50: 11 | K50: 13 | L50: 11 | M50: 15 | N50: 18
A51: Total | B51: 114 | C51: 119 | D51: 122 | E51: 122 | F51: 121 | G51: 120 | H51: 124 | I51: 124 | J51: 133 | K51: 139 | L51: 146 | M51: 151 | N51: 154
A52: Gas production wells, units | B52: 6941 | C52: 7010 | D52: 7154 | E52: 7214 | F52: 7310 | G52: 7403 | H52: 7504 | I52: 7717 | J52: 7744 | K52: 7816 | L52: 7881 | M52: 7916 | N52: 7945
A53: including those in operation | B53: 6401 | C53: 6513 | D53: 6640 | E53: 6723 | F53: 6775 | G53: 6806 | H53: 6988 | I53: 7226 | J53: 7263 | K53: 7293 | L53: 7358 | M53: 7441 | N53: 7 438
A54: Oil production wells, units | B54: 5018 | C54: 5486 | D54: 5881 | E54: 5932 | F54: 6158 | G54: 6464 | H54: 6647 | I54: 7296 | J54: 7868 | K54: 8218 | L54: 9058 | M54: 9316 | N54: 7944
A55: including those in operation | B55: 4372 | C55: 4948 | D55: 5342 | E55: 5444 | F55: 5663 | G55: 5941 | H55: 6151 | I55: 6738 | J55: 7246 | K55: 7604 | L55: 8461 | M55: 8681 | N55: 7 358
A56: Comprehensive and preliminary gas treatment units, units | B56: 169 | C56: 170 | D56: 172 | E56: 173 | F56: 174 | G56: 176 | H56: 177 | I56: 179 | J56: 170 | K56: 171 | L56: 170 | M56: 171 | N56: 169
A57: Comprehensive gas treatment units aggregate installed capacity, bcm per year | B57: 939.6 | C57: 957.8 | D57: 976 | E57: 991 | F57: 994.5 | G57: 1001.2 | H57: 1003.2 | I57: 1072.9 | J57: 1099.7 | K57: 1119.7 | L57: 1119.7 | M57: 1119.7 | N57: 1 127,9
A58: Booster compressor stations, units | B58: 44 | C58: 44 | D58: 45 | E58: 45 | F58: 47 | G58: 48 | H58: 49 | I58: 49 | J58: 49 | K58: 52 | L58: 53 | M58: 58 | N58: 58
A59: Installed capacity of booster compressor stations, MW | B59: 4176.1 | C59: 4176.1 | D59: 4300.1 | E59: 4460.1 | F59: 4508.1 | G59: 4572.1 | H59: 4730.1 | I59: 5015.2 | J59: 5046.4 | K59: 5265.4 | L59: 5080.3 | M59: 5 669,8 | N59: 5 789,8
A61: Production capacity of entities, investments in which are classified as joint operations
B62: As at 31 December
B63: 2005 | C63: 2006 | D63: 2007 | E63: 2008 | F63: 2009 | G63: 2010 | H63: 2011 | I63: 2012 | J63: 2013 | K63: 2014 | L63: 2015 | M63: 2016 | N63: 2017
A64: Fields in operation, units | B64: x | C64: x | D64: x | E64: x | F64: x | G64: x | H64: x | I64: 34 | J64: 35 | K64: 39 | L64: 41 | M64: 42 | N64: 41
A65: Gas production wells, units | B65: x | C65: x | D65: x | E65: x | F65: x | G65: x | H65: x | I65: 9 | J65: 9 | K65: 8 | L65: 7 | M65: 7 | N65: 7
A66: including those in operation | B66: x | C66: x | D66: x | E66: x | F66: x | G66: x | H66: x | I66: 2 | J66: – | K66: 1 | L66: 3 | M66: 3 | N66: 1
A67: Oil production wells, units | B67: x | C67: x | D67: x | E67: x | F67: x | G67: x | H67: x | I67: 3439 | J67: 3590 | K67: 3635 | L67: 3768 | M67: 3733 | N67: 3810
A68: including those in operation | B68: x | C68: x | D68: x | E68: x | F68: x | G68: x | H68: x | I68: 2927 | J68: 3017 | K68: 3086 | L68: 3163 | M68: 3379 | N68: 3472
A70: Back to Contents

Sheet Promising fields
A1: Promising Fields
A2: Producing fields operated by Gazprom Group
A3: Field | B3: Description | C3: Annual design capacity | D3: Year of launch | E3: Year of achieving design capacity
A4: Nadym-Pur-Taz area (Western Siberia)
A5: Nydinsky block of the Medvezhye field | B5: Located within the Medvezhye field in the Pur District of the Yamal-Nenets Autonomous Area. | C5: 2.7 bcm of gas | D5: 2011 | E5: 2021
A6: Urengoyskoye (Achimov deposits) | B6: Deposits have been divided into blocks to facilitate phased development.
A7: Block 1 | C7: 9.6 bcm of gas and 2.95 mm tonnes of unstable gas condensate | D7: 2008 | E7: 2021–2023
A8: Block 2 | C8: 8.7 bcm of gas and 2.84 mm tonnes of unstable gas condensate | D8: 2009
A9: Blocks 4–5 | C9: 15.5 bcm of gas | D9: 2020 | E9: 2024–2027
A10: Yamal Peninsula and adjacent offshore areas
A11: Bovanenkovskoye field | B11: The largest field on the Yamal Peninsula in terms of reserves; the field is located in the central part of the peninsula and is the best explored.
A12: Cenomanian-Aptian deposits | C12: 115 bcm of gas | D12: 2012 | E12: 2022
A13: Neocomian-Jurassic deposits | C13: 25 bcm of gas | D13: 2025–2026 | E13: 2030–2032
A14: Novoportovskoye | B14: Located in the south-eastern corner of the Yamal Peninsula, where no infrastructure is available. | C14: 8.6 mm tonnes of oil | D14: 2016 | E14: 2020
A15: Volga Area
A16: Astrakhanskoye | B16: Located in the Volga Delta; capable of yielding 50–60 bcm of gas per annum. Production is restricted to 12 bcm per annum for environmental concerns and expensive technology used. | D16: 1986
A17: Volga–Urals Area
A18: Vostochny block of the Orenburg oil and gas condensate field | B18: Located 40 km away from Orenburg in a region that benefits from well-developed infrastructure and close vicinity to distribution markets. | C18: 6.4 mm toe | D18: 1994 | E18: 2021
A19: Continental shelf in Russia’s Arctic
A20: Prirazlomnoye | B20: Located on the continental shelf of the Russian Federation in the Pechora Sea, 55 km from the settlement of Varandey, 240 km from the river port of Naryan-Mar (Pechora River) and 980 km away from the Murmansk sea port. The sea depth within the field area is only 17–20 metres. | C20: 4.9 mm tonnes of oil | D20: 2013 | E20: 2023
A21: Eastern Siberia and the Russian Far East
A22: Chayandinskoye | B22: Located in the Lensk District of the Republic of Sakha (Yakutia). | C22: 25 bcm of gas | D22: 2019 | E22: 2024
C23: 1.9 mm tonnes of oil | D23: 2014 (launch of pilot production) | E23: To be adjusted based on the results of the pilot production phase
A24: Continental shelf of the Russian Federation in the Okhotsk Sea
A25: Kirinskoye | B25: Located on the continental shelf of the Russian Federation in the Okhotsk Sea, to the northeast of Sakhalin. Field development is part of Sakhalin III Project. | C25: 5.5 bcm of gas | D25: 2014 | E25: 2021–2022
A26: Note. As at 31 December 2017. Dates of launch and reaching design capacity may be subject to changes depending on the developments in the energy market.
A28: Fields explored by Gazprom Group
A29: Field | B29: Description | C29: Annual design capacity | D29: Year of launch | E29: Year of achieving design capacity
A30: Yamal Peninsula and adjacent offshore areas
A31: Kharasaveyskoye
A32: Cenomanian-Aptian deposits | B32: To be put in operation after the Bovanenkovskoye field achieves design capacity. | C32: 32 bcm of gas | D32: 2023–2024 | E32: 2026–2027
A33: Neocomian-Jurassic deposits | C33: 18 bcm of gas | D33: 2026–2027 | E33: 2028–2029
A34: Kruzenshternskoye | B34: Part of the Bovanenkovskoye group of fields. | C34: 33 bcm of gas | D34: 2027–2028 | E34: 2031–2033
A35: Continental shelf in Russia’s Arctic
A36: Shtokmanovskoye | B36: Located in the central area of the Barents Sea to the northwest of Yamal and 650 km to the northeast of Murmansk; Gas is planned to be shipped via the Unified Gas Supply System or as LNG to remote markets. | C36: 71.7 bcm expandable to 95 bcm of gas | D36: To be specified based on the Investment Case
A37: Ob and Taz Bays
A38: Severo- Kamennomysskoye | B38: Located in the offshore area of the Ob Bay in the Yamal-Nenets Autonomous Area (Tyumen Region) and is a priority development area in offshore areas of the Ob and Taz Bays. | C38: 14.5 bcm of gas | D38: 2027–2029 | E38: 2032–2033
A39: Kamennomysskoye-more | C39: 15.1 bcm of gas | D39: 2025 | E39: 2027–2029
A40: Eastern Siberia and the Russian Far East
A41: Kovyktinskoye | B41: Located in the Zhigalovo and Kazachinskoye Districts of the Irkutsk Region | C41: 25 bcm of gas | D41: 2022 | E41: 2025
A42: Continental shelf of the Russian Federation in the Sea of Okhotsk
A43: Yuzhno-Kirinskoye | B43: Located on the continental shelf of the Russian Federation in the Okhotsk Sea, to the northeast of Sakhalin. Field development is part of Sakhalin III Project. | C43: 21 bcm of gas | D43: 2023 | E43: 2033–2034
A44: Note. As at 31 December 2017. Dates of launch and reaching design capacity may be subject to changes depending on the developments in the energy market.
A46: Fields of joint ventures of Gazprom Group
A47: Field | B47: Description and partner | C47: Annual design capacity | D47: Year of launch | E47: Year of operation at design capacity
A48: Gydan Peninsula
A49: Vostochno-Messoyakhsky licence block | B49: Located in the northern part of the Western Siberian oil and gas province in the southwest of the Gydan Peninsula; one of the largest fields by explored reserves. Partner: Rosneft. | C49: 5.9 mm tonnes of oil | D49: 2016 | E49: 2021
A50: Eastern Siberia and the Russian Far East
A51: Kuyumbinskoye | B51: Located in the Baikitsky Municipality of the Evenk Municipal District in the Krasnoyarsk Territory. Makes part of the Yurubcheno- Tokhomskaya oil and gas pool. The area is hard to access and has no all-season roads. Partner: Rosneft. | C51: 10.8 mm tonnes of oil | D51: 2018 | E51: 2032
A52: Note. As at 31 December 2017. Dates of launch and reaching design capacity may be subject to changes depending on the developments in the energy market.
A54: Back to Contents

Sheet Explor. and production abroad
A1: Geological Exploration, Production Drilling and Production Capacity Abroad
A2: Key figures of Gazprom’s hydrocarbon geological exploration abroad
B3: For the year ended 31 December
B4: 2007 | C4: 2008 | D4: 2009 | E4: 2010 | F4: 2011 | G4: 2012 | H4: 2013 | I4: 2014 | J4: 2015 | K4: 2016 | L4: 2017
A5: Exploration drilling, thousand m | B5: 14.2 | C5: 32.1 | D5: 30.7 | E5: 21.8 | F5: 21.8 | G5: 24 | H5: 18.1 | I5: 17.6 | J5: 28.3 | K5: 9.7 | L5: 18.4
A6: Exploration wells, completed construction, units | B6: – | C6: 4 | D6: 10 | E6: 10 | F6: 6 | G6: 7 | H6: 4 | I6: 5 | J6: 4 | K6: 8 | L6: 8
A7: including productive wells | B7: – | C7: – | D7: 2 | E7: 4 | F7: 6 | G7: 1 | H7: 1 | I7: 4 | J7: 2 | K7: 7 | L7: 5
A8: Seismic exploration 2D, thousand linear km | B8: 2.4 | C8: 6.3 | D8: 12.5 | E8: 11.4 | F8: 1.3 | G8: 0.7 | H8: 0.4 | I8: – | J8: – | K8: 1.5 | L8: –
A9: Seismic exploration 3D, thousand square km | B9: 1.3 | C9: 7.4 | D9: 3.6 | E9: 2.6 | F9: 0.7 | G9: 0.4 | H9: 1.4 | I9: 1.7 | J9: 1.4 | K9: 0.8 | L9: 1.2
A10: Note. Consolidated figures of geological exploration in foreign countries include results of the projects where companies of Gazprom Group have control and participate as operators.
A12: Gazprom Group’s hydrocarbon production capacity abroad
B13: As at 31 December
F14: 2011 | G14: 2012 | H14: 2013 | I14: 2014 | J14: 2015 | K14: 2016 | L14: 2017
A15: Production fields, units | F15: 50 | G15: 50 | H15: 51 | I15: 47 | J15: 53 | K15: 47 | L15: 48
A16: Gas production wells, units | F16: 225 | G16: 234 | H16: 289 | I16: 235 | J16: 168 | K16: 172 | L16: 163
A17: including those in operation | F17: 104 | G17: 111 | H17: 94 | I17: 96 | J17: 74 | K17: 81 | L17: 81
A18: Oil production wells, units | F18: 900 | G18: 903 | H18: 863 | I18: 904 | J18: 963 | K18: 931 | L18: 946
A19: including those in operation | F19: 603 | G19: 623 | H19: 543 | I19: 623 | J19: 661 | K19: 681 | L19: 737
A20: Note. The data shows Group’s hydrocarbon production capacity in foreign countries for the respective periods provided by NIS (Serbia).
A22: Gazprom Group oil and gas exploration drilling abroad
B23: For the year ended 31 December
B24: 2007 | C24: 2008 | D24: 2009 | E24: 2010 | F24: 2011 | G24: 2012 | H24: 2013 | I24: 2014 | J24: 2015 | K24: 2016 | L24: 2017
A25: Production wells, completed construction, units
A26: natural gas | G26: 2 | H26: 1 | I26: 3 | J26: – | K26: 2 | L26: –
A27: crude oil | G27: 12 | H27: 27 | I27: 46 | J27: 35 | K27: 38 | L27: 51
A28: Total | G28: 14 | H28: 28 | I28: 49 | J28: 35 | K28: 40 | L28: 51
A29: Production wells drilled, thousand m
A30: natural gas | G30: 3 | H30: 1.9 | I30: 7.9 | J30: – | K30: 1.6 | L30: 2.1
A31: crude oil | G31: 18.4 | H31: 63.6 | I31: 86 | J31: 75 | K31: 40.9 | L31: 67.5
A32: Total | G32: 21.4 | H32: 65.5 | I32: 93.9 | J32: 75 | K32: 42.5 | L32: 69.6
A33: Note. The data shows Group’s hydrocarbon production capacity in foreign countries for the respective periods provided by NIS (Serbia).
A35: Hydrocarbon production abroad, projects with participation of Gazprom Group
A36: Project | B36: For the year ended 31 December
B37: 2007 | C37: 2008 | D37: 2009 | E37: 2010 | F37: 2011 | G37: 2012 | H37: 2013 | I37: 2014 | J37: 2015 | K37: 2016 | L37: 2017
A38: Natural and associated gas, mmcm
A39: Badra | G39: – | H39: – | I39: – | J39: 7 | K39: 14 | L39: 208
A40: Wingate | G40: 742 | H40: 394 | I40: 622 | J40: 877 | K40: 686 | L40: 436
A41: Moc Tinh and Hai Thach | G41: – | H41: 331 | I41: 1786 | J41: 1884 | K41: 2142 | L41: 2099
A42: Shakhpakthy | G42: 301 | H42: 319 | I42: 334 | J42: 357 | K42: 363 | L42: 312
A43: Incahuasi | G43: – | H43: – | I43: – | J43: – | K43: 740 | L43: 2519
A44: Gas condensate, thousand tonnes
A45: Wingate | G45: 5 | H45: 2 | I45: 4 | J45: 5 | K45: 3 | L45: 3
A46: Moc Tinh and Hai Thach | G46: – | H46: 59 | I46: 366 | J46: 436 | K46: 573 | L46: 469
A47: Incahuasi | G47: – | H47: – | I47: – | J47: – | K47: 75 | L47: 270
A48: Oil, thousand tonnes
A49: Badra | G49: – | H49: – | I49: 309 | J49: 1383 | K49: 2575 | L49: 3787
A50: Junin-6 block | G50: – | H50: 106 | I50: 262 | J50: 524 | K50: 823 | L50: 839
A51: Garmian block | G51: – | H51: – | I51: – | J51: 219 | K51: 193 | L51: 370
A52: Note. Production volumes are given in total for the project, not specifying Gazprom Group’s share.
A54: Back to Contents

Sheet Exploration projects abroad
A1: International prospecting and exploration projects of Gazprom Group
A2: Country | B2: Project name, purpose, and description | C2: Project start | D2: The Group’s operator role | E2: Terms of the Group’s participation
A3: Algeria | B3: Hydrocarbon exploration and development at the El-Assel licence block located in the Berkine geological basin in the east of Algeria in the Sahara Desert. | C3: 2009 | D3: + | E3: Gazprom EP International B.V.
A4: Bolivia | B4: Hydrocarbon exploration and development at the Ipati and Aquio licence blocks. The Incahuasi field was discovered during the exploration stage at the Ipati and Aquio licence blocks in 2011. Project highlights: — Launched in 2016; — Design capacity of Phase 1 CGTU — 2.4 bcm of natural gas per year. | C4: 2010 | D4: – | E4: GP Exploración y Producción, S.L.
B5: Hydrocarbon exploration and development at the Azero licence block. | C5: 2013 | D5: – | E5: GP Exploración y Producción, S.L.
A6: UK and the Netherlands | B6: Construction, production, and follow-up exploration at the UK’s offshore Wingate gas field (licence blocks P1239, P1733). The field has been producing since 2011. Design capacity**: 0.5 bcm of natural gas per year. | C6: 2008 | D6: – | E6: Gazprom UK Resources, S.A.
B7: Exploration at UK’s offshore licence blocks: UK’s P1902 (block 44/23c) and P1903 (blocks 44/23d and 44/24c) | C7: 2012 | D7: – | E7: Gazprom International UK Ltd.
B8: Exploration at Licence Block D12b on the Dutch continental shelf | C8: 2011 | D8: – | E8: Gazprom International UK Ltd.
B9: Exploration at Licence Block 44/19a on the UK’s continental shelf | C9: 2014 | D9: – | E9: Gazprom International UK Ltd.
A10: Venezuela | B10: Development of Junin-6 heavy oil field in the Orinoco River basin | C10: 2009 | D10: – | E10: PAO Gazprom Neft
A11: Vietnam | B11: Hydrocarbon prospecting and exploration on the Vietnamese continental shelf.
B12: Block 112 (including extension) | C12: 2000 | D12: + | E12: AO Gazprom Zarubezhneftegaz
B13: Blocks 129–132 | C13: 2008 | D13: + | E13: AO Gazprom Zarubezhneftegaz
B14: Hydrocarbon production at blocks 05–2 and 05–3 in the Vietnamese waters of the South China Sea. Sales of hydrocarbons. Two gas and condensate fields (Moc Tinh and Hai Thach) have been discovered within the boundaries of the blocks. Highlights of the joint development project at the Moc Tinh and Hai Thach fields: — Launched in 2013; — Design capacity: 2.0 bcm of natural gas per year; — Design capacity reached in 2016. | C14: 2012 | D14: – | E14: Gazprom EP International B.V.
A15: Iraq | B15: Development of the Badrah field Project stage: commercial operation. Project highlights: — Launched in 2014; — Design capacity: 5.7 mm tonnesof oil per year; — Design capacity to be reached in 2017. The project is expected to span 20 years, with potential extension for another five years. | C15: 2010 | D15: + | E15: Gazprom Neft Badra B.V.
B16: Zagros Project, blocks Shakal, Garmian and Halabja** in Kurdistan | C16: 2012
B17: Shakal block Project stage: exploration. — Commercial production to be launched in 2018. | D17: + | E17: Gazprom Neft Middle East B.V.
B18: Garmian block The Sarkala field has been discovered within the boundaries of the blocks. Project stage: commercial operation. | D18: + | E18: Gazprom Neft Middle East B.V.
A19: Kazakhstan and Russia | B19: Development of the Tsentralnoye cross-border offshore field in the Caspian Sea (a joint project between the Russian Federation and the Republic of Kazakhstan). The field was discovered in 2008 as part of a prospecting and exploration project at the Tsentralnaya geological structure, which involved the Group. | C19: 2013 | D19: - | E19: PJSC Gazprom
A20: Kyrgyzstan | B20: Exploration at Vostochniy Mailisu — IV and Kugart oil and gas prospects. | C20: 2006 | D20: + | E20: AO Gazprom Zarubezhneftegaz
A21: Libya | B21: Hydrocarbon exploration and development at licence Blocks 19 (offshore Mediterranean) and 64 (onshore, in the northern part of the Gadames oil and gas bearing basin). | C21: 2007 | D21: + | E21: Gazprom Libya B.V.
A22: Tajikistan | B22: Exploration at Sarikamysh, and Western Shohambary oil and gas prospects***. | C22: 2006 | D22: + | E22: AO Gazprom Zarubezhneftegaz
A23: Uzbekistan | B23: Djel field development (Shakhpakhty licence block). | C23: 2006 | D23: + | E23: AO Gazprom Zarubezhneftegaz
B24: Refurbishment of the infrastructure at the Shakhpakhty field in the Ustyurt region of the Republic of Uzbekistan, and follow-up development of remaining gas reserves are underway. | C24: 2004 | D24: + | E24: AO Gazprom Zarubezhneftegaz
A25: * The project’s economics are reviewed by the operator annually in Q3.
A26: ** Following a comprehensive geological assessment, in 2017, the Halabja block was found to be unviable to pursue exploration drilling programmes in the current macroeconomic environment.
A27: *** Since further subsoil exploration on the Western Shohambary and Sarikamysh prospects was found to be unviable, work is in progress to return the subsoil licences.
A29: International prospecting and exploration projects of affiliates and joint ventures
A30: Company | B30: Overview and results | C30: Gazprom Group’s interest | E30: Countries of operation
A31: Wintershall AG | B31: The company owns C96 and C97 oil concessions in Libya and acts as the project operator. Nine fields are in operation. In August 2013, Force Majeure was invoked by the company, in place until September 2016. Due to the unstable political situation in the country, oil production was carried out with interruptions during 2017, at the rate of 65 thousand barrels per day, in accordance with an interim agreement between Wintershall AG and Libyan National Oil Corporation. In 2017, the company produced a total of 1,531 thousand tonnes of oil and 233 mmcm of associated gas (in 2016: 504 thousand tonnes of oil and 137 mmcm of associated gas). | C31: 49% equity share acquired by the Group in 2007 as a result of the asset swap agreement with BASF. | E31: Libya
A32: Wintershall Noordzee B.V. | B32: The company owns varied level stakes in 51 licenses in the British, Danish, and Dutch sectors of the North Sea. A number of oil and gas fields are discovered within these license areas. The key producing assets include K18-Golf, Wingate, Q1-B, and Q1-D gas fields. In 2017, the company also started the commercial development of the Ravn oil field in the Danish North Sea. In 2017, the company produced a total 776 mmcm of gas and 17.4 thousand tonnes of oil. | C32: 50% equity share acquired by the Group in 2015 as a result of the asset swap agreement with BASF. | E32: The Netherlands, United Kingdom, Denmark
A33: Note. As at 31 December 2017.
A35: Back to Contents

Sheet Transportation
A1: Transportation and Underground Storage
A2: Transportation
A3: Upgrade and overhaul of gas transportation system in Russia
B4: For the year ended 31 December
B5: 2005 | C5: 2006 | D5: 2007 | E5: 2008 | F5: 2009 | G5: 2010 | H5: 2011 | I5: 2012 | J5: 2013 | K5: 2014 | L5: 2015 | M5: 2016 | N5: 2017
A6: New gas trunk pipelines and pipeline branches put into operation*, km | B6: 1402 | C6: 1526 | D6: 1157 | E6: 1381 | F6: 865 | G6: =ROUND(1338.6,0) -> 1339 | H6: 2470 | I6: 3213 | J6: 703 | K6: 1277 | L6: 933 | M6: 771 | N6: 640
A7: Reconstruction of trunk pipelines, km | C7: 39 | D7: 185 | E7: 102 | F7: 551 | G7: 380 | H7: 131 | I7: 132 | J7: 214 | K7: 200 | L7: 169 | M7: 211 | N7: 100
A8: Capital repairs, km | B8: 2166.8 | C8: 2809 | D8: 2697 | E8: 2756.3 | F8: 2383.7 | G8: 2427.3 | H8: 2436.6 | I8: 2487 | J8: 1819 | K8: 1581 | L8: 1441 | M8: 823 | N8: 810
A9: Number of technical faults per 1 thousand km | B9: 0.14 | C9: 0.12 | D9: 0.11 | E9: 0.13 | F9: 0.09 | G9: 0.04 | H9: 0.07 | I9: 0.09 | J9: 0.05 | K9: 0.03 | L9: 0.05 | M9: 0.03 | N9: 0.02
A10: * Starting from 2015, the data is formed including comissioning of objects not provided by the investment program of the corresponding year.
A12: Diagnostics of the GTS in Russia, thousand km
B13: For the year ended 31 December
B14: 2005 | C14: 2006 | D14: 2007 | E14: 2008 | F14: 2009 | G14: 2010 | H14: 2011 | I14: 2012 | J14: 2013 | K14: 2014 | L14: 2015 | M14: 2016 | N14: 2017
A15: Inline inspections | B15: 17.3 | C15: 16.9 | D15: 17.2 | E15: 19.8 | F15: 17.7 | G15: 21.9 | H15: 21.7 | I15: 22.2 | J15: 22.6 | K15: 23.5 | L15: 19.9 | M15: 23.9 | N15: 22.1
A16: Corrosion inspections | B16: 23.2 | C16: 29.9 | D16: 20.5 | E16: 25.6 | F16: 17 | G16: 28.1 | H16: 26.1 | I16: 23 | J16: 21.5 | K16: 18.4 | L16: 17.9 | M16: 17.3 | N16: 18
A18: Major technical characteristics of Gazprom Group’s gas transportation assets in Russia
B19: As at 31 December
B20: 2005 | C20: 2006 | D20: 2007 | E20: 2008 | F20: 2009 | G20: 2010 | H20: 2011 | I20: 2012 | J20: 2013 | K20: 2014 | L20: 2015 | M20: 2016 | N20: 2017
A21: Length of gas trunk pipelines and pipeline branches (in single-lane measuring)*, thousand km | B21: 155 | C21: 156.9 | D21: 158.2 | E21: 159.5 | F21: 160.4 | G21: 161.7 | H21: 164.7 | I21: 168.3 | J21: 168.9 | K21: 170.7 | L21: 171.2 | M21: 171.8 | N21: 172.1
A22: Linear compressor stations, units | B22: 210 | C22: 217 | D22: 218 | E22: 214 | F22: 215 | G22: 215 | H22: 211 | I22: 222 | J22: 247 | K22: 250 | L22: 250 | M22: 253 | N22: 254
A23: Gas pumping units (GPUs), units | B23: 3587 | C23: 3629 | D23: 3641 | E23: 3669 | F23: 3675 | G23: 3659 | H23: 3630 | I23: 3738 | J23: 3820 | K23: 3825 | L23: 3829 | M23: 3852 | N23: 3844
A24: GPUs installed capacity, thousand MW | B24: 40.2 | C24: 41 | D24: 41.4 | E24: 41.6 | F24: 42 | G24: 42.1 | H24: 41.7 | I24: 43.9 | J24: 45.9 | K24: 46.1 | L24: 46.2 | M24: 46.7 | N24: 46.7
A25: * Starting from 31 December 2013, length is given including technological jumpers.
A27: Breakdown of Russian trunk pipelines by time of service*, thousand km
B28: As at 31 December
G29: 2010 | H29: 2011 | I29: 2012 | J29: 2013 | K29: 2014 | L29: 2015 | M29: 2016 | N29: 2017
A30: Up to 10 years | G30: 17.2 | H30: 19.6 | I30: 22.2 | J30: 21.1 | K30: 20.6 | L30: 19.9 | M30: 17.3 | N30: 17.3
A31: from 11 to 20 years | G31: 25 | H31: 21.8 | I31: 20.4 | J31: 20 | K31: 20.7 | L31: 19.1 | M31: 15.8 | N31: 16.2
A32: from 21 to 30 years | G32: 70.9 | H32: 64.6 | I32: 61.7 | J32: 56.5 | K32: 50.6 | L32: 47.3 | M32: 40.9 | N32: 40.9
A33: from 31 to 40 years | G33: 23.8 | H33: 31.8 | I33: 36.8 | J33: 41.7 | K33: 46.6 | L33: 49.2 | M33: 55.2 | N33: 55.2
A34: from 41 to 50 years | G34: 19.3 | H34: 19.6 | I34: 18.8 | J34: 19.7 | K34: 20.6 | L34: 23.3 | M34: 24.9 | N34: 24.8
A35: Over 50 years | G35: 5.5 | H35: 7.3 | I35: 8.4 | J35: 9.9 | K35: 11.6 | L35: 12.4 | M35: 17.7 | N35: 17.7
A36: Total | G36: 161.7 | H36: 164.7 | I36: 168.3 | J36: 168.9 | K36: 170.7 | L36: 171.2 | M36: 171.8 | N36: 172.1
A37: * Starting from December 31, 2013, the length is given штсдгвштп technological jumpers.
A39: Gas received into and distributed from Gazprom’s GTS in Russia, bcm
B40: For the year ended 31 December
B41: 2005 | C41: 2006 | D41: 2007 | E41: 2008 | F41: 2009 | G41: 2010 | H41: 2011 | I41: 2012 | J41: 2013 | K41: 2014 | L41: 2015 | M41: 2016 | N41: 2017
A42: Injections into GTS
A43: Gas inflow to GTS, including: | B43: 646.9 | C43: 660.9 | D43: 654.8 | E43: 669.2 | F43: 552.4 | G43: 614.1 | H43: 630.9 | I43: 613.7 | J43: 621 | K43: 588.7 | L43: 574.2 | M43: 573.8 | N43: 623.1
A44: Central Asian gas | B44: 54.6 | C44: 57 | D44: 59.9 | E44: 61.4 | F44: 35.7 | G44: 35.3 | H44: 31.8 | I44: 31.7 | J44: 29.3 | K44: 26.4 | L44: 20 | M44: 18 | N44: 20.8
A45: Azerbaijanian gas | B45: – | C45: – | D45: – | E45: – | F45: – | G45: 0.8 | H45: 1.5 | I45: 1.6 | J45: 1.4 | K45: 0.2 | L45: – | M45: – | N45: –
A46: Gas withdrawn from UGSFs in Russia and Latvia | B46: 42.8 | C46: 48.2 | D46: 41.7 | E46: 36.1 | F46: 30 | G46: 40.8 | H46: 47.1 | I46: 44.3 | J46: 32.7 | K46: 32.7 | L46: 24.3 | M46: 44.9 | N46: 45.7
A47: Decrease of amount of gas stored in GTS | B47: 10 | C47: 8.7 | D47: 10.2 | E47: 9 | F47: 7.3 | G47: 6.3 | H47: 5.2 | I47: 8.2 | J47: 5.7 | K47: 6.1 | L47: 4.1 | M47: 3.9 | N47: 3.3
A48: Total | B48: 699.7 | C48: 717.8 | D48: 706.7 | E48: 714.3 | F48: 589.7 | G48: 661.2 | H48: 683.2 | I48: 666.2 | J48: 659.4 | K48: 627.5 | L48: 602.6 | M48: 622.6 | N48: 672.1
A49: Distribution from GTS
A50: Supplies inside Russia, including: | B50: 339.8 | C50: 352 | D50: 356.4 | E50: 352.8 | F50: 335.6 | G50: 354.9 | H50: 365.6 | I50: 362.3 | J50: 354.6 | K50: 356.5 | L50: 342.3 | M50: 351.7 | N50: 354
A51: Central Asian gas | B51: 0.1 | C51: 0.1 | D51: 0.1 | E51: 0.1 | F51: 0.1 | G51: 0.1 | H51: 0.1 | I51: 0 | J51: 0 | K51: 0 | L51: 0 | M51: 0 | N51: 0
A52: Supplies outside Russia, including: | B52: 251.2 | C52: 254.7 | D52: 247.3 | E52: 251.1 | F52: 195.6 | G52: 209.3 | H52: 217.7 | I52: 209.3 | J52: 220.2 | K52: 196.2 | L52: 196.8 | M52: 209.4 | N52: 232.4
A53: Central Asian gas | B53: 54.5 | C53: 56.8 | D53: 59.7 | E53: 61.3 | F53: 35.6 | G53: 35.2 | H53: 31.8 | I53: 31.6 | J53: 29.3 | K53: 26.4 | L53: 20 | M53: 18 | N53: 20.7
A54: Azerbaijanian gas | B54: – | C54: – | D54: – | E54: – | F54: – | G54: 0.8 | H54: 1.5 | I54: 1.6 | J54: 1.4 | K54: 0.2 | L54: – | M54: – | N54: –
A55: Gas pumped into UGSFs in Russia | B55: 46.3 | C55: 50.3 | D55: 43 | E55: 51.6 | F55: 15.7 | G55: 47.7 | H55: 48.2 | I55: 44.1 | J55: 38.4 | K55: 35.1 | L55: 27.1 | M55: 24.7 | N55: 44.2
A56: Technical needs of GTS and UGSFs | B56: 51.7 | C56: 52 | D56: 49.5 | E56: 49.6 | F56: 36.3 | G56: 43.6 | H56: 45.8 | I56: 40.9 | J56: 40.6 | K56: 33.2 | L56: 32.3 | M56: 32.3 | N56: 37.8
A57: Increase of amount of gas stored in GTS | B57: 10.7 | C57: 8.8 | D57: 10.5 | E57: 9.2 | F57: 6.5 | G57: 5.7 | H57: 5.9 | I57: 9.6 | J57: 5.6 | K57: 6.5 | L57: 4.1 | M57: 4.5 | N57: 3.7
A58: Total | B58: 699.7 | C58: 717.8 | D58: 706.7 | E58: 714.3 | F58: 589.7 | G58: 661.2 | H58: 683.2 | I58: 666.2 | J58: 659.4 | K58: 627.5 | L58: 602.6 | M58: 622.6 | N58: 672.1
A60: Gas transportation volumes of Nord Stream and Blue Stream pipelines, bcm
B61: For the year ended 31 December
H62: 2011 | I62: 2012 | J62: 2013 | K62: 2014 | L62: 2015 | M62: 2016 | N62: 2017
A63: Nord Stream pipeline (through Portovaya CS) | H63: 0.9 | I63: 11.8 | J63: 23.8 | K63: 35.6 | L63: 39.1 | M63: 43.8 | N63: 51
A64: Blue Stream pipeline (through Beregovaya CS) | H64: 14 | I64: 14.7 | J64: 13.7 | K64: 14.4 | L64: 15.7 | M64: 13.1 | N64: 15.9
A66: Major technical characteristics of gas transportation assets of Gazprom Group’s subsidiaries abroad
B67: As at and for the year ended 31 December
H68: 2011 | I68: 2012 | J68: 2013 | K68: 2014 | L68: 2015 | M68: 2016 | N68: 2017
A69: Belarus (OAO Gazprom transgaz Belarus and a part of Yamal — Europe gas pipeline on the territory of Belarus)
A70: Length, thousand km | H70: 7.9 | I70: 7.9 | J70: 7.9 | K70: 7.9 | L70: 7.9 | M70: 7.9 | N70: 7.9
A71: Compressor stations, units | H71: 10 | I71: 10 | J71: 10 | K71: 10 | L71: 10 | M71: 10 | N71: 10
A72: Gas inflow to gas transportation system, bcm | H72: 64.3 | I72: 64.5 | J72: 69.1 | K72: 65.2 | L72: 64.2 | M72: 60.3 | N72: 61.2
A73: including transit | H73: 44.3 | I73: 44.3 | J73: 48.8 | K73: 45.1 | L73: 45.4 | M73: 41.7 | N73: 42.2
A74: Armenia (ZAO Gazprom Armenia)
A75: Length, thousand km | H75: 1.9 | I75: 1.9 | J75: 1.8 | K75: 1.7 | L75: 1.6 | M75: 1.6 | N75: 1.7
A76: Compressor stations, units | H76: – | I76: – | J76: – | K76: – | L76: – | M76: – | N76: –
A77: Gas inflow to gas transportation system, bcm | H77: 2.1 | I77: 2.5 | J77: 2.4 | K77: 2.5 | L77: 2.3 | M77: 2.2 | N77: 2.4
A78: including transit | H78: – | I78: – | J78: – | K78: – | L78: – | M78: – | N78: –
A79: Kyrgyzstan (OsOO Gazprom Kyrgyzstan)*
A80: Length, thousand km | H80: x | I80: x | J80: x | K80: 0.7 | L80: 0.7 | M80: 0.7 | N80: 0.8
A81: Compressor stations, units | H81: x | I81: x | J81: x | K81: 1 | L81: 1 | M81: 1 | N81: 1
A82: Gas inflow to gas transportation system, bcm | H82: x | I82: x | J82: x | K82: 4.3 | L82: 4.6 | M82: 4.5 | N82: 6.6
A83: including transit | H83: x | I83: x | J83: x | K83: 4 | L83: 4.4 | M83: 4.2 | N83: 6.4
A84: * Figures provided since the year when control was taken over by the Group.
A86: Back to Contents

Sheet Gas transportation projects
A1: Gazprom Group’s major gas transportation projects
A2: Project | B2: Purpose | C2: Project highlights
C3: Length | D3: Number / total capacity of compressor stations | E3: Annual capacity | F3: Project period
A4: Gryazovets — Vyborg pipeline loopings to the second line on Gryasovets — Volkhov section (expansion) | B4: Increasing gas supplies to consumers in Saint Petersburg and the Leningrad Region | C4: 213 km | D4: – | E4: 7.0 bcm | F4: 2017– 2019
A5: Nord Stream 2 | B5: Gas supplies to consumers in Western and Central Europe | C5: C. 1,225 km (to be adjusted based on the results of a detailed project) | D5: – | E5: 55 bcm | F5: Q4 2019
A6: TurkStream | B6: Supplies of Russian gas to Turkey across the Black Sea and further on to Turkey’s borders with neighbouring countries | C6: Two pipeline strings 937 km and 939 km long (offshore section) | D6: The company will consider benefits of building compressor stations in Turkey based on the design documents to be developed by the Turkish partners for the onshore section of the pipeline. | E6: 31.5 bcm | F6: December 2019
A7: Murmansk — Volkhov gas pipeline | B7: Gas transportation from the Shtokman field to the Russian UGSS | C7: 1,365 km | D7: Up to 10 compressor stations / 1,225 MW | E7: Up to 46 bcm (depending on gas production levels at the Shtokman field) | F7: Construction and commissioning will be scheduled after the investment decision is made on the Shtokmanovskoye field.
A8: Bovanenkovo — Ukhta — 2 gas pipeline | B8: Gas pipeline system to carry gas from Yamal fields | C8: 1 108 km | D8: 9 compressor stations / 830 MW | E8: 57.5 bcm | F8: 2014–2020
A9: Ukhta — Torzhok — 2 gas pipeline | B9: Additional gas supplies to Russia’s North-West to expand the domestic gas infrastructure and ensure export supplies via Nord Stream 2 | C9: 970 km | D9: 7 compressor stations / 625 MW | E9: 45 bcm | F9: 2014–2020
A10: Power of Siberia | B10: Gas supplies from the Chayandinskoye oil and gas condensate field and the Kovyktinskoye gas condensate field to the gas infrastructure of the Far Eastern Federal District, and gas exports to China market | C10: 2,960 km, including 2,156 km of the Chayandinskoye — China border | D10: 9 compressor stations (1,234 MW), including 8 compressor stations (1,186 MW) between Chayandinskoye and China border | E10: Up to 48 bcm | F10: Phased commissioning starting from December 2019 in line with the obligations under the agreement for Russian gas supplies to China via the eastern route.
A11: Power of Siberia 2 | B11: Gas supplies from Western Siberia to China; diversification of gas exports | C11: 2,622 km (to be adjusted based on design stage results) | D11: 12 compressor stations (to be adjusted based on design stage results) | E11: 30 bcm | F11: The feasibility study has been completed. PJSC Gazprom and CNPC continue negotiating the commercial and technical framework of gas supplies.
A12: Expansion of UGSS transportation capacity in Northwest Russia, Gryazovets – CS Slavyanskaya section | B12: Additional gas supplies to consumers in Northwest Russia and gas exports | C12: 870 km | D12: 8 compressor stations / 1,500 MW | E12: C. 80 bcm | F12: Staged commissioning starting from December 2019
A13: Sakhalin — Khabarovsk — Vladivostok | B13: Additional gas supplies to consumers in the Primorye and Khabarovsk Territories, as well as export supplies | C13: C. 380 km | D13: 4 compressor stations / 288 MW | E13: C. 20 bcm | F13: Phased commissioning starting from 2020
A14: Note. As ta 31 December 2017.
A16: Back to Contents

Sheet Gas storage
A1: Underground Gas Storage
A2: Gazprom’s UGSFs in Russia
B3: As at 31 December
B4: 2005 | C4: 2006 | D4: 2007 | E4: 2008 | F4: 2009 | G4: 2010 | H4: 2011 | I4: 2012 | J4: 2013 | K4: 2014 | L4: 2015 | M4: 2016 | N4: 2017
A5: Number of UGSFs, units | B5: 24 | C5: 25 | D5: 25 | E5: 25 | F5: 25 | G5: 25 | H5: 25 | I5: 25 | J5: 26 | K5: 26 | L5: 26 | M5: 26 | N5: 26
A6: Total active capacity, bcm | B6: 64.25 | C6: 64.65 | D6: 64.94 | E6: 65.2 | F6: 65.2 | G6: 65.41 | H6: 66.7 | I6: 68.16 | J6: 70.41 | K6: 71.1 | L6: 73.56 | M6: 73.62 | N6: 74.93
A7: Number of producing wells at UGSFs, units | B7: 2509 | C7: 2588 | D7: 2618 | E7: 2615 | F7: 2601 | G7: 2564 | H7: 2602 | I7: 2621 | J7: 2689 | K7: 2685 | L7: 2686 | M7: 2681 | N7: 2694
A9: Gas storage in Russia
B10: Injection season
B11: 2005 | C11: 2006 | D11: 2007 | E11: 2008 | F11: 2009 | G11: 2010 | H11: 2011 | I11: 2012 | J11: 2013 | K11: 2014 | L11: 2015 | M11: 2016 | N11: 2017
A12: Gas injection into UGSFs, mmcm
A13: Q1 | B13: – | C13: – | D13: 1074.8 | E13: 107.1 | F13: 161.4 | G13: =ROUND(866.627,1) -> 866.6 | H13: – | I13: 357.6 | J13: 55.7 | K13: 189.4 | L13: – | M13: – | N13: 23.2
A14: Q2 | B14: 19513.3 | C14: 21189.2 | D14: 21295.6 | E14: 24370.5 | F14: 3075 | G14: =ROUND(24097.694,1) -> 24097.7 | H14: 21291.8 | I14: 23793.6 | J14: 21407.9 | K14: 14963.8 | L14: 10158.4 | M14: 8468.8 | N14: 17443.9
A15: Q3 | B15: 22416.6 | C15: 25659.5 | D15: 19766.1 | E15: 24020.4 | F15: 10116.9 | G15: =ROUND(20680.963,1) -> 20681 | H15: 24248.5 | I15: 18006.8 | J15: 13784.8 | K15: 16790.1 | L15: 14498.1 | M15: 14209.2 | N15: 24434.7
A16: Q4 | B16: 4385.1 | C16: 3500.8 | D16: 859.5 | E16: 3150.4 | F16: 2319.1 | G16: =ROUND(2085.394,1) -> 2085.4 | H16: 2657.2 | I16: 1938.7 | J16: 3120.1 | K16: 3191.2 | L16: 2425.3 | M16: 1973.1 | N16: 2275.4
A17: Total for the season | B17: 46315 | C17: =SUM(C13:C16) -> 50349.5 | D17: =SUM(D13:D16) -> 42996 | E17: =SUM(E13:E16) -> 51648.4 | F17: =SUM(F13:F16) -> 15672.4 | G17: =SUM(G13:G16) -> 47730.7 | H17: 48197.5 | I17: 44096.7 | J17: 38368.5 | K17: 35134.5 | L17: 27081.8 | M17: 24651.1 | N17: 44177.2
B18: Withdrawal season
B19: 2005-2006 | C19: 2006−2007 | D19: 2007−2008 | E19: 2008−2009 | F19: 2009−2010 | G19: 2010−2011 | H19: 2011−2012 | I19: 2012−2013 | J19: 2013−2014 | K19: 2014−2015 | L19: 2015−2016 | M19: 2016-2017 | N19: 2017-2018
A20: Gas withdrawal from UGSFs, mmcm
A21: Q3 | B21: 185.7 | C21: 4.1 | D21: 89.7 | E21: 107.1 | F21: 155.8 | G21: 135.1 | H21: 300 | I21: 143.9 | J21: 63.2 | K21: 41.9 | L21: 92.8 | M21: 114.2 | N21: 164.4
A22: Q4 | B22: 12873.2 | C22: 12743.4 | D22: 21688.7 | E22: 7634.2 | F22: 18980.5 | G22: 14428.8 | H22: 13664.6 | I22: 14418.3 | J22: 9777 | K22: 8262.5 | L22: 5172.1 | M22: 18834.6 | N22: 17117.2
A23: Q1 of the next year | B23: 34936 | C23: 19763.6 | D23: 28347.1 | E23: 8653.9 | F23: 26176.9 | G23: 31740.7 | H23: 29258.1 | I23: 21815.7 | J23: 21662.3 | K23: 16353.2 | L23: 24653.1 | M23: 26175.1 | N23: 31 036,3
A24: Q2 of the next year | B24: 518.1 | C24: 116.5 | D24: 18.5 | E24: 2234 | F24: 48.5 | G24: 1366.2 | H24: 481.9 | I24: 1091.9 | J24: 2714.6 | K24: 2653.2 | L24: 1234.2 | M24: 2022.8 | N24: 430.6
A25: Total for the season | B25: 48513 | C25: =SUM(C21:C24) -> 32627.6 | D25: =SUM(D21:D24) -> 50144 | E25: =SUM(E21:E24) -> 18629.2 | F25: =SUM(F21:F24) -> 45361.7 | G25: =SUM(G21:G24) -> 47670.8 | H25: 43704.5 | I25: 37469.8 | J25: 34217.1 | K25: 27310.8 | L25: 31152.2 | M25: 47146.7 | N25: 48748.5
A26: Maximum potential daily output as at the beginning of gas withdrawal season, mmcm per day | B26: 568 | C26: 600 | D26: 608 | E26: 620 | F26: 620 | G26: 620 | H26: 647.7 | I26: 671.1 | J26: 727.8 | K26: 770.4 | L26: 789.9 | M26: 801.3 | N26: 805.3
A28: Gazprom’s gas injection into and withdrawal from UGSFs abroad, mmcm
B29: Injection season, Q1–Q4
B30: 2005 | C30: 2006 | D30: 2007 | E30: 2008 | F30: 2009 | G30: 2010 | H30: 2011 | I30: 2012 | J30: 2013 | K30: 2014 | L30: 2015 | M30: 2016 | N30: 2017
A31: Gas injection into UGSFs abroad, mmcm
A32: FSU countries
A33: Armenia | B33: 84 | C33: 101 | D33: 87 | E33: 89 | F33: 70 | G33: 46.1 | H33: 23.1 | I33: 127.4 | J33: 29.2 | K33: 68.9 | L33: 40.6 | M33: 37.2 | N33: 71.3
A34: Belarus | B34: – | C34: – | D34: – | E34: – | F34: – | G34: – | H34: 748 | I34: 940.8 | J34: 928.8 | K34: 962.3 | L34: 916.7 | M34: 857.1 | N34: 948.8
A35: Latvia | B35: 1466.9 | C35: 1588.9 | D35: 135.3 | E35: 1300.1 | F35: 588.1 | G35: =ROUND(1639.45,1) -> 1639.5 | H35: 1567.5 | I35: 1599.5 | J35: 1536.7 | K35: 1907.1 | L35: 1550 | M35: 1250 | N35: 254.8
A36: Total injection (FSU countries) | B36: =SUM(B33:B35) -> 1550.9 | C36: 1689.9 | D36: 222.3 | E36: 1389.1 | F36: 658.1 | G36: 1685.6 | H36: =SUM(H33:H35) -> 2338.6 | I36: 2667.7 | J36: 2494.7 | K36: 2938.3 | L36: 2507.3 | M36: 2144.3 | N36: 1 274,9
A37: Far abroad countries*
A38: Austria | B38: 440.4 | C38: 449 | D38: 944.8 | E38: 858.6 | F38: 474.1 | G38: =ROUND(580.758,1) -> 580.8 | H38: 1093.7 | I38: 1407.1 | J38: 1472 | K38: 1303.5 | L38: 709.8 | M38: 683.9 | N38: 2222.5
A39: Great Britain | B39: 76.8 | C39: 294.4 | D39: 414.5 | E39: 528.9 | F39: 225.8 | G39: =ROUND(233.672,1) -> 233.7 | H39: 225.2 | I39: 224.3 | J39: 226.5 | K39: 224 | L39: 224.4 | M39: – | N39: –
A40: Hungary | B40: – | C40: – | D40: – | E40: – | F40: – | G40: – | H40: – | I40: – | J40: – | K40: 699.9 | L40: – | M40: – | N40: 898.4
A41: Germany | B41: 374.9 | C41: 1142.7 | D41: 1111 | E41: 1384.8 | F41: 583.6 | G41: =ROUND(705.293,1) -> 705.3 | H41: 155.2 | I41: 2149.5 | J41: 1464.2 | K41: 886.1 | L41: 797.2 | M41: 654.1 | N41: 1840
A42: The Netherlands | B42: – | C42: – | D42: – | E42: – | F42: 328 | G42: =ROUND(853.78,1) -> 853.8 | H42: 1582.6 | I42: 1276.7 | J42: 617.3 | K42: 1313.1 | L42: 1176.9 | M42: 1195 | N42: 1782
A43: Serbia | B43: – | C43: – | D43: – | E43: – | F43: – | G43: – | H43: 279.4 | I43: 336.2 | J43: 93.5 | K43: 118.4 | L43: – | M43: – | N43: 12.6
A44: Slovakia | B44: – | C44: – | D44: – | E44: – | F44: – | G44: – | H44: – | I44: – | J44: – | K44: – | L44: – | M44: – | N44: 738
A45: France | B45: – | C45: – | D45: – | E45: 273.9 | F45: 250 | G45: =ROUND(298.162,1) -> 298.2 | H45: – | I45: – | J45: – | K45: – | L45: – | M45: – | N45: –
A46: Czech Republic | B46: – | C46: – | D46: – | E46: – | F46: – | G46: – | H46: – | I46: – | J46: – | K46: – | L46: – | M46: 105.3 | N46: 190.8
A47: Short-term contracts for storage in European UGSFs | B47: – | C47: – | D47: – | E47: – | F47: – | G47: – | H47: – | I47: – | J47: – | K47: – | L47: – | M47: – | N47: 909.9
A48: Total injection (far abroad countries) | B48: =SUM(B38:B46) -> 892.1 | C48: 1886.1 | D48: 2470.3 | E48: 3046.2 | F48: 1861.5 | G48: 2671.8 | H48: 3336.1 | I48: 5393.8 | J48: 3873.5 | K48: 4545 | L48: 2908.3 | M48: =SUM(M38:M47) -> 2638.3 | N48: 8 594,2
A49: Total for the season | B49: 2443 | C49: 3576 | D49: 2692.6 | E49: 4435.3 | F49: 2519.6 | G49: 4357.4 | H49: 5674.7 | I49: 8061.5 | J49: 6368.2 | K49: 7483.3 | L49: 5415.6 | M49: =M48+M36 -> 4782.6 | N49: 9869.1
A50: * Gas injection of Gazprom Group for contracts of OOO Gazprom Export.
B51: Withdrawal season, Q3–Q4 and Q1–Q2 of the next year
B52: 2005-2006 | C52: 2006−2007 | D52: 2007−2008 | E52: 2008−2009 | F52: 2009−2010 | G52: 2010−2011 | H52: 2011−2012 | I52: 2012−2013 | J52: 2013−2014 | K52: 2014−2015 | L52: 2015−2016 | M52: 2016-2017 | N52: 2017-2018
A53: Gas withdrawal* from UGSFs abroad
A54: FSU countries
A55: Armenia | B55: 73 | C55: 78 | D55: 64 | E55: 80 | F55: 24 | G55: 21.2 | H55: 127.1 | I55: 18.2 | J55: 66.7 | K55: 23 | L55: 10.8 | M55: 30.6 | N55: 47.8
A56: Belarus | B56: – | C56: – | D56: – | E56: – | F56: – | G56: – | H56: 783.5 | I56: 840.9 | J56: 813.1 | K56: 850 | L56: 815.2 | M56: 879.2 | N56: 959.2
A57: Latvia | B57: 911.1 | C57: 213.1 | D57: 288.3 | E57: 682.8 | F57: =ROUND(1009.162,1) -> 1009.2 | G57: 1658.5 | H57: 1529.8 | I57: 1410.8 | J57: 1318.4 | K57: 1541.7 | L57: 1257.1 | M57: 1087.3 | N57: 141.1
A58: Total withdrawal (FSU countries) | B58: =SUM(B55:B57) -> 984.1 | C58: =SUM(C55:C57) -> 291.1 | D58: 352.3 | E58: 762.8 | F58: 1033.2 | G58: 1679.7 | H58: 2440.4 | I58: 2269.9 | J58: 2198.2 | K58: 2414.7 | L58: 2083.1 | M58: 1997.1 | N58: 1148.1
A59: Far abroad countries**
A60: Austria | B60: 200 | C60: 200 | D60: 652.8 | E60: 381.9 | F60: =ROUNDDOWN(480.151,1) -> 480.1 | G60: 543.7 | H60: 982.6 | I60: 1534.1 | J60: 1171.6 | K60: 835.8 | L60: 820 | M60: 1480.5 | N60: 1986.3
A61: Great Britain | B61: – | C61: 371.2 | D61: 422.4 | E61: 227.5 | F61: =ROUND(317.951,1) -> 318 | G61: 435 | H61: 225.2 | I61: 224.3 | J61: 226.5 | K61: 224 | L61: 224.4 | M61: – | N61: –
A62: Hungary | B62: – | C62: – | D62: – | E62: – | F62: – | G62: – | H62: – | I62: – | J62: – | K62: 699.9 | L62: – | M62: – | N62: 898.4
A63: Germany | B63: 661.4 | C63: 887.4 | D63: 952.2 | E63: 790.1 | F63: =ROUND(731.396,1) -> 731.4 | G63: 481.8 | H63: 716.9 | I63: 2342.2 | J63: 1123.7 | K63: 753.4 | L63: 978.1 | M63: 936.9 | N63: 2116.4
A64: The Netherlands | B64: – | C64: – | D64: – | E64: – | F64: – | G64: – | H64: – | I64: – | J64: – | K64: 405.4 | L64: 1129.8 | M64: 1981.3 | N64: 1532.8
A65: Serbia | B65: – | C65: – | D65: – | E65: – | F65: – | G65: – | H65: 34.3 | I65: 145.7 | J65: 67.5 | K65: 0.5 | L65: 12 | M65: 0.5 | N65: 44.5
A66: Slovakia | B66: – | C66: – | D66: – | E66: – | F66: – | G66: – | H66: – | I66: – | J66: – | K66: – | L66: – | M66: – | N66: 673
A67: France | B67: – | C67: – | D67: – | E67: 273.9 | F67: =ROUND(248.515,1) -> 248.5 | G67: 299.7 | H67: – | I67: – | J67: – | K67: – | L67: – | M67: – | N67: –
A68: Czech Republic | B68: – | C68: – | D68: – | E68: – | F68: – | G68: – | H68: – | I68: – | J68: – | K68: – | L68: – | M68: 104.5 | N68: 183.2
A69: Short-term contracts for storage in European UGSFs | B69: – | C69: – | D69: – | E69: – | F69: – | G69: – | H69: – | I69: – | J69: – | K69: – | L69: – | M69: – | N69: 974.9
A70: Total injection (far abroad countries) | B70: =SUM(B60:B68) -> 861.4 | C70: =SUM(C60:C68) -> 1458.6 | D70: 2027.4 | E70: 1673.4 | F70: 1778 | G70: 1760.2 | H70: 1959 | I70: 4246.3 | J70: 2589.3 | K70: 2919 | L70: 3164.3 | M70: 4503.7 | N70: 8409.5
A71: Total for the season | B71: 1845.5 | C71: 1749.7 | D71: 2379.7 | E71: 2436.2 | F71: 2811.2 | G71: 3439.9 | H71: 4399.4 | I71: 6516.2 | J71: 4787.5 | K71: 5333.7 | L71: 5247.4 | M71: 6500.8 | N71: 9557.6
A72: * Excluding volumes sold in UGSFs
A73: ** Gas withdrawal of Gazprom group for contracts of OOO Gazprom Export.
